{"text_format":"1","workbook":"xlsx","n_sheets":5,"sheets":["TENDER PACK 2 LNG (Sheet A)","DC2A","TENDER PACK 2 LNG (Sheet B)","DC2B","DC2C"],"not_rendered":{"charts":0,"images":3,"macros":1,"external_links":0,"defined_names":0,"comments":5,"pivot_tables":0},"unopened":[],"bounds":{"document_bytes":16777216,"sheet_cells":100000,"rows_first":2000,"rows_last":500,"rows_between":2000,"halvings":0,"cell_chars":16384,"cell_head_chars":4096},"cells_cut":0,"cells_raw":0,"read":"whole","date_system":"1900"}

{"sheet":"TENDER PACK 2 LNG (Sheet A)","index":0,"n_rows":248,"n_cols":18,"rows_kept":248,"cut":false,"hidden":false,"merged":[[23,16,24,16],[24,3,24,14],[25,3,25,14],[27,3,38,14],[27,16,29,16],[42,3,42,14],[2,3,6,14],[3,16,5,16],[13,3,14,14],[16,3,22,14],[17,16,20,16],[87,3,88,6],[87,7,88,14],[89,3,90,6],[89,7,90,14],[91,2,94,2],[91,3,94,6],[91,7,94,14],[43,3,47,14],[43,16,45,16],[49,3,61,14],[53,16,55,16],[82,3,83,14],[85,3,85,14],[98,3,98,6],[98,7,98,14],[99,3,100,6],[99,7,100,14],[101,3,101,6],[101,7,101,14],[95,3,95,6],[95,7,95,14],[96,3,96,6],[96,7,96,14],[97,3,97,6],[97,7,97,14],[127,2,128,2],[127,3,128,6],[127,7,128,14],[129,2,133,2],[129,3,133,6],[129,7,133,14],[102,3,102,6],[102,7,102,14],[104,3,104,14],[106,3,107,14],[122,3,123,14],[125,3,125,14],[160,3,161,14],[163,3,163,14],[165,2,167,2],[165,3,167,6],[165,7,167,12],[165,13,167,14],[134,2,137,2],[134,3,137,6],[134,7,137,14],[138,2,140,2],[138,3,140,6],[138,7,140,14],[165,16,167,16],[168,2,169,2],[168,3,169,6],[168,7,169,12],[168,13,169,14],[170,3,171,6],[170,7,171,12],[170,13,171,14],[172,3,173,6],[172,7,173,12],[172,13,173,14],[172,2,173,2],[170,2,171,2],[180,2,181,2],[180,3,181,6],[180,7,181,14],[182,2,183,2],[182,3,183,6],[182,7,183,14],[174,2,175,2],[174,3,175,6],[174,7,175,12],[174,13,175,14],[176,2,179,2],[176,3,179,6],[176,7,179,12],[176,13,179,14],[189,2,190,2],[189,3,189,14],[184,2,185,2],[184,3,185,6],[184,7,185,12],[184,13,185,14],[186,2,187,2],[186,3,187,6],[186,7,187,12],[186,13,187,14],[191,3,191,4],[191,5,191,6],[191,7,191,8],[191,9,191,10],[191,11,191,12],[191,13,191,14],[192,3,192,4],[193,3,193,4],[192,5,192,6],[193,5,193,6],[192,7,192,8],[193,7,193,8],[192,9,192,10],[193,9,193,10],[192,11,192,12],[193,11,193,12],[192,13,192,14],[193,13,193,14],[194,13,194,14],[195,13,195,14],[196,3,196,4],[197,3,197,4],[196,5,196,6],[197,5,197,6],[196,7,196,8],[197,7,197,8],[196,9,196,10],[197,9,197,10],[196,11,196,12],[197,11,197,12],[196,13,196,14],[197,13,197,14],[194,3,194,4],[195,3,195,4],[194,5,194,6],[195,5,195,6],[194,7,194,8],[195,7,195,8],[194,9,194,10],[195,9,195,10],[194,11,194,12],[195,11,195,12],[198,13,198,14],[199,13,199,14],[200,3,200,4],[201,3,201,4],[200,5,200,6],[201,5,201,6],[200,7,200,8],[201,7,201,8],[200,9,200,10],[201,9,201,10],[200,11,200,12],[201,11,201,12],[200,13,200,14],[201,13,201,14],[198,3,198,4],[199,3,199,4],[198,5,198,6],[199,5,199,6],[198,7,198,8],[199,7,199,8],[198,9,198,10],[199,9,199,10],[198,11,198,12],[199,11,199,12],[202,13,202,14],[203,11,203,12],[203,13,203,14],[205,2,206,2],[205,3,206,6],[205,7,206,12],[205,13,206,14],[207,2,208,2],[207,3,208,6],[207,7,208,12],[207,13,208,14],[202,3,202,4],[203,3,203,4],[202,5,202,6],[203,5,203,6],[202,7,202,8],[203,7,203,8],[202,9,202,10],[203,9,203,10],[202,11,202,12],[217,2,222,2],[217,3,222,6],[217,7,222,12],[217,13,222,14],[232,16,234,16],[141,3,143,6],[141,7,143,14],[141,2,143,2],[8,3,11,9],[8,11,11,14],[8,10,11,10],[229,2,230,2],[229,3,230,6],[229,7,230,12],[229,13,230,14],[231,2,234,2],[231,3,234,6],[231,7,234,14],[223,2,228,2],[223,3,228,6],[223,7,228,12],[223,13,228,14],[212,3,213,14],[215,3,215,14]]}
[]
[]
[null,null,null,"\nTENDER PACK 2\nOPERATING MARGINS - 2023/24 GAS DELIVERY TENDER (LNG)\nSHEET A - MANDATORY 12 MONTH BID\n"]
[]
[]
[]
[]
[]
[null,null,null,"This tender pack is designed for;\n• LNG Importation with Storage Facility Operators\n• Capacity Holders at LNG Importation with Storage Facilities\n",null,null,null,null,null,null,null,"Submission of this sheet is mandatory for LNG Tenderers"]
[]
[]
[]
[]
[null,null,null,"Issued 9th December 2022"]
[]
[]
[null,null,null,"Produced by National Grid Gas Transmission  \nNational Grid Gas plc\nNational Grid House\nWarwick Technology Park\nGallows Hill\nWarwick\nCV34 6DA"]
[]
[]
[]
[]
[]
[]
[]
[null,null,null,"Website:"]
[null,null,null,"https://www.nationalgrid.com/uk/gas-transmission/balancing/operating-margins-om"]
[]
[null,null,null,"PLEASE NOTE:\nThis document should be read in conjunction with the template Operating Margins agreements (found on the Operating Margins Homepage) and the document entitled \"Tender Guidance Document 2023/24\".\n\nSpecific guidance on how to complete these tender sheets is provided in Sections 7 & 8 of the Operating Margins Tender Guidance Document with specific cross-references to these tender sheets via superscript numbers adjacent to the relevant fields of information. Please also refer to Section 6 \"Requirements of the Tender Process\" in order to understand what must accompany the tender sheets as part of submission in order that assessment can proceed on any tenders received.\n\nTerms and phrases used in this document have the meanings set out or referred to in the template Operating Margins agreements and/or the Operating Margins Tender Guidance Document."]
[]
[]
[]
[]
[]
[]
[]
[]
[]
[]
[]
[null,null,null,null,null,null,null,null,null,null,null,null,null,null,null,null,"Page 1"]
[]
[]
[null,null,null,"IMPORTANT INFORMATION - PLEASE READ:"]
[null,null,null,"• All parts of 'Sheet A' must be completed by all LNG tenderers and submitted to be eligible for assessment.\n• An LNG tenderer may submit an additional proposal for a 12 month OM service in the form of 'Sheet B', whereby tranches are split differently (Part 5). This is optional. \n\n**Volumes in Sheets A and B will be treated as mutually exclusive - i.e. National Grid will only consider accepting tranche(s) from ONE of Sheet A or Sheet B**"]
[]
[]
[]
[]
[]
[null,null,null,"Completed Tenders should be submitted by 13:00 hours (GMT) on Monday 23rd January 2023 via Ariba.\n\nThe completed Tender Pack should be uploaded with a filename which includes the company name and site.\nAfter uploading the Tender Pack document, terms and conditions must be accepted before submitting.\nSubmissions can be revised until the deadline."]
[]
[]
[]
[]
[]
[]
[]
[]
[]
[]
[]
[]
[]
[]
[]
[]
[]
[]
[]
[]
[]
[]
[]
[]
[]
[]
[]
[]
[]
[null,null,null,null,null,null,null,null,null,null,null,null,null,null,null,null,"Page 2"]
[]
[]
[null,null,null,"2023/24 OM DELIVERY TENDER (LNG)"]
[]
[]
[null,null,null,"Part 1: Tenderer Details"]
[]
[null,null,1,"Tenderer's Company Name\n(including company number)"]
[]
[null,null,2,"Company Representative, Job Title"]
[]
[null,null,3,"Company Representative Address\n(full address including postcode)"]
[]
[]
[]
[null,null,4,"Telephone Number"]
[null,null,5,"Facsimile Number"]
[null,null,6,"Email Address"]
[null,null,7,"Legal Agent Name"]
[null,null,8,"Legal Agent Address"]
[]
[null,null,9,"Shipper Short Code"]
[null,null,10,"Achilles Registration Number"]
[]
[null,null,null,"Part 2"]
[]
[null,null,null,"[See OM Tenderers Contract Response Form if such amendments are proposed]\nIf no amendments are proposed please go to Part 3"]
[]
[]
[]
[]
[]
[]
[]
[]
[]
[]
[]
[]
[null,null,null,null,null,null,null,null,null,null,null,null,null,null,null,null,"Page 3"]
[]
[]
[null,null,null,"2023/24 OM DELIVERY TENDER (LNG)"]
[]
[]
[null,null,null,"Part 3: Facility Details"]
[]
[null,null,11,"Facility Name\n(including company number)"]
[]
[null,null,12,"Facility Location\n(full address including postcode)"]
[]
[]
[]
[]
[null,null,13,"Service Provision Category",null,null,null,null,null,null,null,null,null,null,null,null,null,"Operator of LNG Importation with Storage"]
[null,null,null,null,null,null,null,null,null,null,null,null,null,null,null,null,null,"Capacity Holder of LNG Importation with Storage"]
[null,null,null,null,null,null,null,null,null,null,null,null,null,null,null,null,2]
[]
[null,null,14,"Execution Date For Tenderer’s Agreement With Facility Operator"]
[]
[]
[null,null,15,"Duration of Service",null,null,null,"12 Months (01/05/2023 - 30/04/2024)"]
[]
[]
[]
[]
[]
[]
[]
[]
[]
[]
[]
[]
[]
[]
[]
[null,null,null,null,null,null,null,null,null,null,null,null,null,null,null,null,"Page 4"]
[]
[]
[null,null,null,"2023/24 OM DELIVERY TENDER (LNG)"]
[]
[]
[null,null,null,"Part 4: Deliverability & Availability"]
[]
[null,null,16,"Maximum Delivery Rate (Tendered for the purposes of OM)\n(must be greater or equal to 500,000 kWh/hour)",null,null,null,null,null,null,null,null,null,"kWh/hour"]
[]
[]
[null,null,17,"Minimum Delivery Rate (Tendered for the purposes of OM)\n(optional) (if left blank delivery deemed at 0)",null,null,null,null,null,null,null,null,null,"kWh/hour"]
[]
[null,null,18,"Maximum SP Delivery Rate (if applicable)",null,null,null,null,null,null,null,null,null,"kWh/hour"]
[]
[null,null,19,"Minimum SP Delivery Rate (if applicable)",null,null,null,null,null,null,null,null,null,"kWh/hour"]
[]
[null,null,20,"Response Time",null,null,null,null,null,null,null,null,null,"Minutes"]
[]
[null,null,21,"Planned Maintenance Periods",null,null,null,null,null,null,null,null,null,"Dates"]
[]
[]
[]
[null,null,22,"Website for Service Availability / Unavailability"]
[]
[null,null,23,"Allocation Agent                                                                  (Name, Address, Tel No)"]
[]
[null,null,24,"Maximum Delivery Duration",null,null,null,null,null,null,null,null,null,"hours",null,null,2]
[]
[null,null,25,"Minimum Delivery Duration\n(Optional) (if left blank delivery deemed at 0)",null,null,null,null,null,null,null,null,null,"hours"]
[]
[]
[null,null,null,"Part 5: Charges"]
[]
[null,null,null,26,null,27,null,28,null,29,null,30,null,31]
[null,null,null,"LNG Procurement Tranche Number",null,"Service Quantity (in kWh)",null,"Estimated Necessary Delivery LNG Quantity kWh",null,"Tranche may only be accepted in full (YES / NO)",null,"Annual Service Fee (in pence per kWh per annum)",null,"Annual Service Fee (£)"]
[null,null,null,1,null,100000,null,null,null,null,null,1,null,{"$f":"(F194*L194)/100","v":1000}]
[null,null,null,2,null,null,null,null,null,null,null,null,null,{"$f":"(F195*L195)/100","v":0}]
[null,null,null,3,null,null,null,null,null,null,null,null,null,0]
[null,null,null,4,null,null,null,null,null,null,null,null,null,0]
[null,null,null,5,null,null,null,null,null,null,null,null,null,0]
[null,null,null,6,null,null,null,null,null,null,null,null,null,0]
[null,null,null,7,null,null,null,null,null,null,null,null,null,0]
[null,null,null,8,null,null,null,null,null,null,null,null,null,0]
[null,null,null,9,null,null,null,null,null,null,null,null,null,0]
[null,null,null,10,null,null,null,null,null,null,null,null,null,0]
[null,null,null,"Total",null,{"$f":"SUM(F194:G203)","v":100000},null,{"$f":"SUM(H194:I203)","v":0},null,null,null,null,null,{"$f":"SUM(N194:O203)","v":1000}]
[]
[null,null,32,"Minimum Inventory ",null,null,null,45,null,null,null,null,null,"kWh"]
[]
[null,null,33,"Facility Delivery Capacity \n(nominal)",null,null,null,45,null,null,null,null,null,"kWh/h"]
[]
[null,null,null,null,null,null,null,null,null,null,null,null,null,null,null,null,"Page 5"]
[]
[]
[null,null,null,"2023/24 OM DELIVERY TENDER (LNG)"]
[]
[]
[null,null,null,"Part 5: Charges (Continued)"]
[]
[null,null,34,"Indexed Delivery Charge\n",null,null,null,"Indexed Delivery Charge 1",null,null,null,null,null,"See Guidance Document"]
[]
[]
[]
[]
[]
[null,null,35,"Overrun Delivery Price\n",null,null,null,null,null,null,null,null,null,"p/kWh, See Guidance Document"]
[]
[]
[]
[]
[]
[null,null,36,"Additional SP Delivery Capacity Charge",null,null,null,null,null,null,null,null,null,"p/kWh, See Guidance Document"]
[]
[null,null,37,"Additional Nomination Restrictions "]
[]
[]
[]
[]
[]
[]
[]
[]
[]
[]
[]
[]
[]
[]
[]
[null,null,null,null,null,null,null,null,null,null,null,null,null,null,null,null,"Page 6"]

{"sheet":"DC2A","index":1,"n_rows":13,"n_cols":43,"rows_kept":13,"cut":false,"hidden":true,"merged":[[0,2,1,9]]}
[null,null,"Data Collection Tab for Contracts Team"]
[]
["Tender Pack","Tender Ref","Tranche Ref","Main Ref",{"$f":"'TENDER PACK 2 LNG (Sheet A)'!D88","v":"Tenderer's Company Name\n(including company number)"},{"$f":"'TENDER PACK 2 LNG (Sheet A)'!D90","v":"Company Representative, Job Title"},{"$f":"'TENDER PACK 2 LNG (Sheet A)'!D92","v":"Company Representative Address\n(full address including postcode)"},{"$f":"'TENDER PACK 2 LNG (Sheet A)'!D96","v":"Telephone Number"},{"$f":"'TENDER PACK 2 LNG (Sheet A)'!D97","v":"Facsimile Number"},{"$f":"'TENDER PACK 2 LNG (Sheet A)'!D98","v":"Email Address"},{"$f":"'TENDER PACK 2 LNG (Sheet A)'!D99","v":"Legal Agent Name"},{"$f":"'TENDER PACK 2 LNG (Sheet A)'!D100","v":"Legal Agent Address"},{"$f":"'TENDER PACK 2 LNG (Sheet A)'!D102","v":"Shipper Short Code"},{"$f":"'TENDER PACK 2 LNG (Sheet A)'!D103","v":"Achilles Registration Number"},"Winter Only?",{"$f":"'TENDER PACK 2 LNG (Sheet A)'!D128","v":"Facility Name\n(including company number)"},{"$f":"'TENDER PACK 2 LNG (Sheet A)'!D130","v":"Facility Location\n(full address including postcode)"},{"$f":"'TENDER PACK 2 LNG (Sheet A)'!D135","v":"Service Provision Category"},{"$f":"'TENDER PACK 2 LNG (Sheet A)'!D139","v":"Execution Date For Tenderer’s Agreement With Facility Operator"},{"$f":"'TENDER PACK 2 LNG (Sheet A)'!$D$166","v":"Maximum Delivery Rate (Tendered for the purposes of OM)\n(must be greater or equal to 500,000 kWh/hour)"},{"$f":"'TENDER PACK 2 LNG (Sheet A)'!$D$169","v":"Minimum Delivery Rate (Tendered for the purposes of OM)\n(optional) (if left blank delivery deemed at 0)"},{"$f":"'TENDER PACK 2 LNG (Sheet A)'!$D$171","v":"Maximum SP Delivery Rate (if applicable)"},{"$f":"'TENDER PACK 2 LNG (Sheet A)'!$D$175","v":"Response Time"},{"$f":"'TENDER PACK 2 LNG (Sheet A)'!$D$177","v":"Planned Maintenance Periods"},{"$f":"'TENDER PACK 2 LNG (Sheet A)'!$D$181","v":"Website for Service Availability / Unavailability"},{"$f":"'TENDER PACK 2 LNG (Sheet A)'!$D$183","v":"Allocation Agent                                                                  (Name, Address, Tel No)"},{"$f":"'TENDER PACK 2 LNG (Sheet A)'!$D$185","v":"Maximum Delivery Duration"},{"$f":"'TENDER PACK 2 LNG (Sheet A)'!$D$187","v":"Minimum Delivery Duration\n(Optional) (if left blank delivery deemed at 0)"},null,{"$f":"'TENDER PACK 2 LNG (Sheet A)'!$D$193","v":"LNG Procurement Tranche Number"},{"$f":"'TENDER PACK 2 LNG (Sheet A)'!$F$193","v":"Service Quantity (in kWh)"},{"$f":"'TENDER PACK 2 LNG (Sheet A)'!$H$193","v":"Estimated Necessary Delivery LNG Quantity kWh"},"Tranche may only be accepted in full (YES / NO)",{"$f":"'TENDER PACK 2 LNG (Sheet A)'!$L$193","v":"Annual Service Fee (in pence per kWh per annum)"},null,{"$f":"'TENDER PACK 2 LNG (Sheet A)'!$D$206","v":"Minimum Inventory "},{"$f":"'TENDER PACK 2 LNG (Sheet A)'!$D$208","v":"Facility Delivery Capacity \n(nominal)"},{"$f":"'TENDER PACK 2 LNG (Sheet A)'!$D$218","v":"Indexed Delivery Charge\n"},{"$f":"'TENDER PACK 2 LNG (Sheet A)'!$D$221","v":0},{"$f":"'TENDER PACK 2 LNG (Sheet A)'!$D$224","v":"Overrun Delivery Price\n"},{"$f":"'TENDER PACK 2 LNG (Sheet A)'!$D$227","v":0},{"$f":"'TENDER PACK 2 LNG (Sheet A)'!$D$230","v":"Additional SP Delivery Capacity Charge"},{"$f":"'TENDER PACK 2 LNG (Sheet A)'!#REF!","v":{"$error":"#REF!"}}]
[null,null,null,{"$f":"A4&\".\"&B4&\".\"&C4","v":".."},{"$f":"'TENDER PACK 2 LNG (Sheet A)'!$H$88","v":0},{"$f":"'TENDER PACK 2 LNG (Sheet A)'!$H$90","v":0},{"$f":"'TENDER PACK 2 LNG (Sheet A)'!$H$92","v":0},{"$f":"'TENDER PACK 2 LNG (Sheet A)'!$H$96","v":0},{"$f":"'TENDER PACK 2 LNG (Sheet A)'!$H$97","v":0},{"$f":"'TENDER PACK 2 LNG (Sheet A)'!$H$98","v":0},{"$f":"'TENDER PACK 2 LNG (Sheet A)'!$H$99","v":0},{"$f":"'TENDER PACK 2 LNG (Sheet A)'!$H$100","v":0},{"$f":"'TENDER PACK 2 LNG (Sheet A)'!$H$102","v":0},{"$f":"'TENDER PACK 2 LNG (Sheet A)'!$H$103","v":0},"No",{"$f":"'TENDER PACK 2 LNG (Sheet A)'!$H$128","v":0},{"$f":"'TENDER PACK 2 LNG (Sheet A)'!$H$130","v":0},{"$f":"IF('TENDER PACK 2 LNG (Sheet A)'!$Q$137=1,\"Please Select\",IF('TENDER PACK 2 LNG (Sheet A)'!$Q$137=3,\"Capacity Holder of LNG Importation with Storage\",IF('TENDER PACK 2 LNG (Sheet A)'!$Q$137=2,\"Operator of LNG Importation with Storage\",0)))","v":"Operator of LNG Importation with Storage"},{"$f":"'TENDER PACK 2 LNG (Sheet A)'!$H$139","v":0},{"$f":"'TENDER PACK 2 LNG (Sheet A)'!$H$166","v":0},{"$f":"'TENDER PACK 2 LNG (Sheet A)'!$H$169","v":0},{"$f":"'TENDER PACK 2 LNG (Sheet A)'!$H$171","v":0},{"$f":"'TENDER PACK 2 LNG (Sheet A)'!$H$175","v":0},{"$f":"'TENDER PACK 2 LNG (Sheet A)'!$H$177","v":"00:00:00"},{"$f":"'TENDER PACK 2 LNG (Sheet A)'!$H$181","v":0},{"$f":"'TENDER PACK 2 LNG (Sheet A)'!$H$183","v":0},{"$f":"IF('TENDER PACK 2 LNG (Sheet A)'!$Q$185=1,\"12\",IF('TENDER PACK 2 LNG (Sheet A)'!$Q$185=2,\"24\",\"UNCHECKED\"))","v":"24"},{"$f":"'TENDER PACK 2 LNG (Sheet A)'!$H$187","v":0},null,{"$f":"'TENDER PACK 2 LNG (Sheet A)'!D194","v":1},{"$f":"'TENDER PACK 2 LNG (Sheet A)'!$F194","v":100000},{"$f":"'TENDER PACK 2 LNG (Sheet A)'!$H194","v":0},{"$f":"'TENDER PACK 2 LNG (Sheet A)'!$J194","v":0},{"$f":"'TENDER PACK 2 LNG (Sheet A)'!$L194","v":1},null,{"$f":"'TENDER PACK 2 LNG (Sheet A)'!$H$206","v":45},{"$f":"'TENDER PACK 2 LNG (Sheet A)'!$H$208","v":45},{"$f":"'TENDER PACK 2 LNG (Sheet A)'!$H$218","v":"Indexed Delivery Charge 1"},{"$f":"'TENDER PACK 2 LNG (Sheet A)'!$H$221","v":0},{"$f":"'TENDER PACK 2 LNG (Sheet A)'!$H$224","v":0},{"$f":"'TENDER PACK 2 LNG (Sheet A)'!$H$227","v":0},{"$f":"'TENDER PACK 2 LNG (Sheet A)'!$H$230","v":0},{"$f":"IF('TENDER PACK 2 LNG (Sheet A)'!#REF!=\"\",\"N\",\"Y\")","v":{"$error":"#REF!"}}]
[null,null,null,null,{"$f":"'TENDER PACK 2 LNG (Sheet A)'!$H$88","v":0},{"$f":"'TENDER PACK 2 LNG (Sheet A)'!$H$90","v":0},{"$f":"'TENDER PACK 2 LNG (Sheet A)'!$H$92","v":0},{"$f":"'TENDER PACK 2 LNG (Sheet A)'!$H$96","v":0},{"$f":"'TENDER PACK 2 LNG (Sheet A)'!$H$97","v":0},{"$f":"'TENDER PACK 2 LNG (Sheet A)'!$H$98","v":0},{"$f":"'TENDER PACK 2 LNG (Sheet A)'!$H$99","v":0},{"$f":"'TENDER PACK 2 LNG (Sheet A)'!$H$100","v":0},{"$f":"'TENDER PACK 2 LNG (Sheet A)'!$H$102","v":0},{"$f":"'TENDER PACK 2 LNG (Sheet A)'!$H$103","v":0},"No",{"$f":"'TENDER PACK 2 LNG (Sheet A)'!$H$128","v":0},{"$f":"'TENDER PACK 2 LNG (Sheet A)'!$H$130","v":0},{"$f":"IF('TENDER PACK 2 LNG (Sheet A)'!$Q$137=1,\"Please Select\",IF('TENDER PACK 2 LNG (Sheet A)'!$Q$137=3,\"Capacity Holder of LNG Importation with Storage\",IF('TENDER PACK 2 LNG (Sheet A)'!$Q$137=2,\"Operator of LNG Importation with Storage\",0)))","v":"Operator of LNG Importation with Storage"},{"$f":"'TENDER PACK 2 LNG (Sheet A)'!$H$139","v":0},{"$f":"'TENDER PACK 2 LNG (Sheet A)'!$H$166","v":0},{"$f":"'TENDER PACK 2 LNG (Sheet A)'!$H$169","v":0},{"$f":"'TENDER PACK 2 LNG (Sheet A)'!$H$171","v":0},{"$f":"'TENDER PACK 2 LNG (Sheet A)'!$H$175","v":0},{"$f":"'TENDER PACK 2 LNG (Sheet A)'!$H$177","v":"00:00:00"},{"$f":"'TENDER PACK 2 LNG (Sheet A)'!$H$181","v":0},{"$f":"'TENDER PACK 2 LNG (Sheet A)'!$H$183","v":0},{"$f":"IF('TENDER PACK 2 LNG (Sheet A)'!$Q$185=1,\"12\",IF('TENDER PACK 2 LNG (Sheet A)'!$Q$185=2,\"24\",\"UNCHECKED\"))","v":"24"},{"$f":"'TENDER PACK 2 LNG (Sheet A)'!$H$187","v":0},null,{"$f":"'TENDER PACK 2 LNG (Sheet A)'!D195","v":2},{"$f":"'TENDER PACK 2 LNG (Sheet A)'!$F195","v":0},{"$f":"'TENDER PACK 2 LNG (Sheet A)'!$H195","v":0},{"$f":"'TENDER PACK 2 LNG (Sheet A)'!$J195","v":0},{"$f":"'TENDER PACK 2 LNG (Sheet A)'!$L195","v":0},null,{"$f":"'TENDER PACK 2 LNG (Sheet A)'!$H$206","v":45},{"$f":"'TENDER PACK 2 LNG (Sheet A)'!$H$208","v":45},{"$f":"'TENDER PACK 2 LNG (Sheet A)'!$H$218","v":"Indexed Delivery Charge 1"},{"$f":"'TENDER PACK 2 LNG (Sheet A)'!$H$221","v":0},{"$f":"'TENDER PACK 2 LNG (Sheet A)'!$H$224","v":0},{"$f":"'TENDER PACK 2 LNG (Sheet A)'!$H$227","v":0},{"$f":"'TENDER PACK 2 LNG (Sheet A)'!$H$230","v":0},{"$f":"IF('TENDER PACK 2 LNG (Sheet A)'!#REF!=\"\",\"N\",\"Y\")","v":{"$error":"#REF!"}}]
[null,null,null,null,{"$f":"'TENDER PACK 2 LNG (Sheet A)'!$H$88","v":0},{"$f":"'TENDER PACK 2 LNG (Sheet A)'!$H$90","v":0},{"$f":"'TENDER PACK 2 LNG (Sheet A)'!$H$92","v":0},{"$f":"'TENDER PACK 2 LNG (Sheet A)'!$H$96","v":0},{"$f":"'TENDER PACK 2 LNG (Sheet A)'!$H$97","v":0},{"$f":"'TENDER PACK 2 LNG (Sheet A)'!$H$98","v":0},{"$f":"'TENDER PACK 2 LNG (Sheet A)'!$H$99","v":0},{"$f":"'TENDER PACK 2 LNG (Sheet A)'!$H$100","v":0},{"$f":"'TENDER PACK 2 LNG (Sheet A)'!$H$102","v":0},{"$f":"'TENDER PACK 2 LNG (Sheet A)'!$H$103","v":0},"No",{"$f":"'TENDER PACK 2 LNG (Sheet A)'!$H$128","v":0},{"$f":"'TENDER PACK 2 LNG (Sheet A)'!$H$130","v":0},{"$f":"IF('TENDER PACK 2 LNG (Sheet A)'!$Q$137=1,\"Please Select\",IF('TENDER PACK 2 LNG (Sheet A)'!$Q$137=3,\"Capacity Holder of LNG Importation with Storage\",IF('TENDER PACK 2 LNG (Sheet A)'!$Q$137=2,\"Operator of LNG Importation with Storage\",0)))","v":"Operator of LNG Importation with Storage"},{"$f":"'TENDER PACK 2 LNG (Sheet A)'!$H$139","v":0},{"$f":"'TENDER PACK 2 LNG (Sheet A)'!$H$166","v":0},{"$f":"'TENDER PACK 2 LNG (Sheet A)'!$H$169","v":0},{"$f":"'TENDER PACK 2 LNG (Sheet A)'!$H$171","v":0},{"$f":"'TENDER PACK 2 LNG (Sheet A)'!$H$175","v":0},{"$f":"'TENDER PACK 2 LNG (Sheet A)'!$H$177","v":"00:00:00"},{"$f":"'TENDER PACK 2 LNG (Sheet A)'!$H$181","v":0},{"$f":"'TENDER PACK 2 LNG (Sheet A)'!$H$183","v":0},{"$f":"IF('TENDER PACK 2 LNG (Sheet A)'!$Q$185=1,\"12\",IF('TENDER PACK 2 LNG (Sheet A)'!$Q$185=2,\"24\",\"UNCHECKED\"))","v":"24"},{"$f":"'TENDER PACK 2 LNG (Sheet A)'!$H$187","v":0},null,{"$f":"'TENDER PACK 2 LNG (Sheet A)'!D196","v":3},{"$f":"'TENDER PACK 2 LNG (Sheet A)'!$F196","v":0},{"$f":"'TENDER PACK 2 LNG (Sheet A)'!$H196","v":0},{"$f":"'TENDER PACK 2 LNG (Sheet A)'!$J196","v":0},{"$f":"'TENDER PACK 2 LNG (Sheet A)'!$L196","v":0},null,{"$f":"'TENDER PACK 2 LNG (Sheet A)'!$H$206","v":45},{"$f":"'TENDER PACK 2 LNG (Sheet A)'!$H$208","v":45},{"$f":"'TENDER PACK 2 LNG (Sheet A)'!$H$218","v":"Indexed Delivery Charge 1"},{"$f":"'TENDER PACK 2 LNG (Sheet A)'!$H$221","v":0},{"$f":"'TENDER PACK 2 LNG (Sheet A)'!$H$224","v":0},{"$f":"'TENDER PACK 2 LNG (Sheet A)'!$H$227","v":0},{"$f":"'TENDER PACK 2 LNG (Sheet A)'!$H$230","v":0},{"$f":"IF('TENDER PACK 2 LNG (Sheet A)'!#REF!=\"\",\"N\",\"Y\")","v":{"$error":"#REF!"}}]
[null,null,null,null,{"$f":"'TENDER PACK 2 LNG (Sheet A)'!$H$88","v":0},{"$f":"'TENDER PACK 2 LNG (Sheet A)'!$H$90","v":0},{"$f":"'TENDER PACK 2 LNG (Sheet A)'!$H$92","v":0},{"$f":"'TENDER PACK 2 LNG (Sheet A)'!$H$96","v":0},{"$f":"'TENDER PACK 2 LNG (Sheet A)'!$H$97","v":0},{"$f":"'TENDER PACK 2 LNG (Sheet A)'!$H$98","v":0},{"$f":"'TENDER PACK 2 LNG (Sheet A)'!$H$99","v":0},{"$f":"'TENDER PACK 2 LNG (Sheet A)'!$H$100","v":0},{"$f":"'TENDER PACK 2 LNG (Sheet A)'!$H$102","v":0},{"$f":"'TENDER PACK 2 LNG (Sheet A)'!$H$103","v":0},"No",{"$f":"'TENDER PACK 2 LNG (Sheet A)'!$H$128","v":0},{"$f":"'TENDER PACK 2 LNG (Sheet A)'!$H$130","v":0},{"$f":"IF('TENDER PACK 2 LNG (Sheet A)'!$Q$137=1,\"Please Select\",IF('TENDER PACK 2 LNG (Sheet A)'!$Q$137=3,\"Capacity Holder of LNG Importation with Storage\",IF('TENDER PACK 2 LNG (Sheet A)'!$Q$137=2,\"Operator of LNG Importation with Storage\",0)))","v":"Operator of LNG Importation with Storage"},{"$f":"'TENDER PACK 2 LNG (Sheet A)'!$H$139","v":0},{"$f":"'TENDER PACK 2 LNG (Sheet A)'!$H$166","v":0},{"$f":"'TENDER PACK 2 LNG (Sheet A)'!$H$169","v":0},{"$f":"'TENDER PACK 2 LNG (Sheet A)'!$H$171","v":0},{"$f":"'TENDER PACK 2 LNG (Sheet A)'!$H$175","v":0},{"$f":"'TENDER PACK 2 LNG (Sheet A)'!$H$177","v":"00:00:00"},{"$f":"'TENDER PACK 2 LNG (Sheet A)'!$H$181","v":0},{"$f":"'TENDER PACK 2 LNG (Sheet A)'!$H$183","v":0},{"$f":"IF('TENDER PACK 2 LNG (Sheet A)'!$Q$185=1,\"12\",IF('TENDER PACK 2 LNG (Sheet A)'!$Q$185=2,\"24\",\"UNCHECKED\"))","v":"24"},{"$f":"'TENDER PACK 2 LNG (Sheet A)'!$H$187","v":0},null,{"$f":"'TENDER PACK 2 LNG (Sheet A)'!D197","v":4},{"$f":"'TENDER PACK 2 LNG (Sheet A)'!$F197","v":0},{"$f":"'TENDER PACK 2 LNG (Sheet A)'!$H197","v":0},{"$f":"'TENDER PACK 2 LNG (Sheet A)'!$J197","v":0},{"$f":"'TENDER PACK 2 LNG (Sheet A)'!$L197","v":0},null,{"$f":"'TENDER PACK 2 LNG (Sheet A)'!$H$206","v":45},{"$f":"'TENDER PACK 2 LNG (Sheet A)'!$H$208","v":45},{"$f":"'TENDER PACK 2 LNG (Sheet A)'!$H$218","v":"Indexed Delivery Charge 1"},{"$f":"'TENDER PACK 2 LNG (Sheet A)'!$H$221","v":0},{"$f":"'TENDER PACK 2 LNG (Sheet A)'!$H$224","v":0},{"$f":"'TENDER PACK 2 LNG (Sheet A)'!$H$227","v":0},{"$f":"'TENDER PACK 2 LNG (Sheet A)'!$H$230","v":0},{"$f":"IF('TENDER PACK 2 LNG (Sheet A)'!#REF!=\"\",\"N\",\"Y\")","v":{"$error":"#REF!"}}]
[null,null,null,null,{"$f":"'TENDER PACK 2 LNG (Sheet A)'!$H$88","v":0},{"$f":"'TENDER PACK 2 LNG (Sheet A)'!$H$90","v":0},{"$f":"'TENDER PACK 2 LNG (Sheet A)'!$H$92","v":0},{"$f":"'TENDER PACK 2 LNG (Sheet A)'!$H$96","v":0},{"$f":"'TENDER PACK 2 LNG (Sheet A)'!$H$97","v":0},{"$f":"'TENDER PACK 2 LNG (Sheet A)'!$H$98","v":0},{"$f":"'TENDER PACK 2 LNG (Sheet A)'!$H$99","v":0},{"$f":"'TENDER PACK 2 LNG (Sheet A)'!$H$100","v":0},{"$f":"'TENDER PACK 2 LNG (Sheet A)'!$H$102","v":0},{"$f":"'TENDER PACK 2 LNG (Sheet A)'!$H$103","v":0},"No",{"$f":"'TENDER PACK 2 LNG (Sheet A)'!$H$128","v":0},{"$f":"'TENDER PACK 2 LNG (Sheet A)'!$H$130","v":0},{"$f":"IF('TENDER PACK 2 LNG (Sheet A)'!$Q$137=1,\"Please Select\",IF('TENDER PACK 2 LNG (Sheet A)'!$Q$137=3,\"Capacity Holder of LNG Importation with Storage\",IF('TENDER PACK 2 LNG (Sheet A)'!$Q$137=2,\"Operator of LNG Importation with Storage\",0)))","v":"Operator of LNG Importation with Storage"},{"$f":"'TENDER PACK 2 LNG (Sheet A)'!$H$139","v":0},{"$f":"'TENDER PACK 2 LNG (Sheet A)'!$H$166","v":0},{"$f":"'TENDER PACK 2 LNG (Sheet A)'!$H$169","v":0},{"$f":"'TENDER PACK 2 LNG (Sheet A)'!$H$171","v":0},{"$f":"'TENDER PACK 2 LNG (Sheet A)'!$H$175","v":0},{"$f":"'TENDER PACK 2 LNG (Sheet A)'!$H$177","v":"00:00:00"},{"$f":"'TENDER PACK 2 LNG (Sheet A)'!$H$181","v":0},{"$f":"'TENDER PACK 2 LNG (Sheet A)'!$H$183","v":0},{"$f":"IF('TENDER PACK 2 LNG (Sheet A)'!$Q$185=1,\"12\",IF('TENDER PACK 2 LNG (Sheet A)'!$Q$185=2,\"24\",\"UNCHECKED\"))","v":"24"},{"$f":"'TENDER PACK 2 LNG (Sheet A)'!$H$187","v":0},null,{"$f":"'TENDER PACK 2 LNG (Sheet A)'!D198","v":5},{"$f":"'TENDER PACK 2 LNG (Sheet A)'!$F198","v":0},{"$f":"'TENDER PACK 2 LNG (Sheet A)'!$H198","v":0},{"$f":"'TENDER PACK 2 LNG (Sheet A)'!$J198","v":0},{"$f":"'TENDER PACK 2 LNG (Sheet A)'!$L198","v":0},null,{"$f":"'TENDER PACK 2 LNG (Sheet A)'!$H$206","v":45},{"$f":"'TENDER PACK 2 LNG (Sheet A)'!$H$208","v":45},{"$f":"'TENDER PACK 2 LNG (Sheet A)'!$H$218","v":"Indexed Delivery Charge 1"},{"$f":"'TENDER PACK 2 LNG (Sheet A)'!$H$221","v":0},{"$f":"'TENDER PACK 2 LNG (Sheet A)'!$H$224","v":0},{"$f":"'TENDER PACK 2 LNG (Sheet A)'!$H$227","v":0},{"$f":"'TENDER PACK 2 LNG (Sheet A)'!$H$230","v":0},{"$f":"IF('TENDER PACK 2 LNG (Sheet A)'!#REF!=\"\",\"N\",\"Y\")","v":{"$error":"#REF!"}}]
[null,null,null,null,{"$f":"'TENDER PACK 2 LNG (Sheet A)'!$H$88","v":0},{"$f":"'TENDER PACK 2 LNG (Sheet A)'!$H$90","v":0},{"$f":"'TENDER PACK 2 LNG (Sheet A)'!$H$92","v":0},{"$f":"'TENDER PACK 2 LNG (Sheet A)'!$H$96","v":0},{"$f":"'TENDER PACK 2 LNG (Sheet A)'!$H$97","v":0},{"$f":"'TENDER PACK 2 LNG (Sheet A)'!$H$98","v":0},{"$f":"'TENDER PACK 2 LNG (Sheet A)'!$H$99","v":0},{"$f":"'TENDER PACK 2 LNG (Sheet A)'!$H$100","v":0},{"$f":"'TENDER PACK 2 LNG (Sheet A)'!$H$102","v":0},{"$f":"'TENDER PACK 2 LNG (Sheet A)'!$H$103","v":0},"No",{"$f":"'TENDER PACK 2 LNG (Sheet A)'!$H$128","v":0},{"$f":"'TENDER PACK 2 LNG (Sheet A)'!$H$130","v":0},{"$f":"IF('TENDER PACK 2 LNG (Sheet A)'!$Q$137=1,\"Please Select\",IF('TENDER PACK 2 LNG (Sheet A)'!$Q$137=3,\"Capacity Holder of LNG Importation with Storage\",IF('TENDER PACK 2 LNG (Sheet A)'!$Q$137=2,\"Operator of LNG Importation with Storage\",0)))","v":"Operator of LNG Importation with Storage"},{"$f":"'TENDER PACK 2 LNG (Sheet A)'!$H$139","v":0},{"$f":"'TENDER PACK 2 LNG (Sheet A)'!$H$166","v":0},{"$f":"'TENDER PACK 2 LNG (Sheet A)'!$H$169","v":0},{"$f":"'TENDER PACK 2 LNG (Sheet A)'!$H$171","v":0},{"$f":"'TENDER PACK 2 LNG (Sheet A)'!$H$175","v":0},{"$f":"'TENDER PACK 2 LNG (Sheet A)'!$H$177","v":"00:00:00"},{"$f":"'TENDER PACK 2 LNG (Sheet A)'!$H$181","v":0},{"$f":"'TENDER PACK 2 LNG (Sheet A)'!$H$183","v":0},{"$f":"IF('TENDER PACK 2 LNG (Sheet A)'!$Q$185=1,\"12\",IF('TENDER PACK 2 LNG (Sheet A)'!$Q$185=2,\"24\",\"UNCHECKED\"))","v":"24"},{"$f":"'TENDER PACK 2 LNG (Sheet A)'!$H$187","v":0},null,{"$f":"'TENDER PACK 2 LNG (Sheet A)'!D199","v":6},{"$f":"'TENDER PACK 2 LNG (Sheet A)'!$F199","v":0},{"$f":"'TENDER PACK 2 LNG (Sheet A)'!$H199","v":0},{"$f":"'TENDER PACK 2 LNG (Sheet A)'!$J199","v":0},{"$f":"'TENDER PACK 2 LNG (Sheet A)'!$L199","v":0},null,{"$f":"'TENDER PACK 2 LNG (Sheet A)'!$H$206","v":45},{"$f":"'TENDER PACK 2 LNG (Sheet A)'!$H$208","v":45},{"$f":"'TENDER PACK 2 LNG (Sheet A)'!$H$218","v":"Indexed Delivery Charge 1"},{"$f":"'TENDER PACK 2 LNG (Sheet A)'!$H$221","v":0},{"$f":"'TENDER PACK 2 LNG (Sheet A)'!$H$224","v":0},{"$f":"'TENDER PACK 2 LNG (Sheet A)'!$H$227","v":0},{"$f":"'TENDER PACK 2 LNG (Sheet A)'!$H$230","v":0},{"$f":"IF('TENDER PACK 2 LNG (Sheet A)'!#REF!=\"\",\"N\",\"Y\")","v":{"$error":"#REF!"}}]
[null,null,null,null,{"$f":"'TENDER PACK 2 LNG (Sheet A)'!$H$88","v":0},{"$f":"'TENDER PACK 2 LNG (Sheet A)'!$H$90","v":0},{"$f":"'TENDER PACK 2 LNG (Sheet A)'!$H$92","v":0},{"$f":"'TENDER PACK 2 LNG (Sheet A)'!$H$96","v":0},{"$f":"'TENDER PACK 2 LNG (Sheet A)'!$H$97","v":0},{"$f":"'TENDER PACK 2 LNG (Sheet A)'!$H$98","v":0},{"$f":"'TENDER PACK 2 LNG (Sheet A)'!$H$99","v":0},{"$f":"'TENDER PACK 2 LNG (Sheet A)'!$H$100","v":0},{"$f":"'TENDER PACK 2 LNG (Sheet A)'!$H$102","v":0},{"$f":"'TENDER PACK 2 LNG (Sheet A)'!$H$103","v":0},"No",{"$f":"'TENDER PACK 2 LNG (Sheet A)'!$H$128","v":0},{"$f":"'TENDER PACK 2 LNG (Sheet A)'!$H$130","v":0},{"$f":"IF('TENDER PACK 2 LNG (Sheet A)'!$Q$137=1,\"Please Select\",IF('TENDER PACK 2 LNG (Sheet A)'!$Q$137=3,\"Capacity Holder of LNG Importation with Storage\",IF('TENDER PACK 2 LNG (Sheet A)'!$Q$137=2,\"Operator of LNG Importation with Storage\",0)))","v":"Operator of LNG Importation with Storage"},{"$f":"'TENDER PACK 2 LNG (Sheet A)'!$H$139","v":0},{"$f":"'TENDER PACK 2 LNG (Sheet A)'!$H$166","v":0},{"$f":"'TENDER PACK 2 LNG (Sheet A)'!$H$169","v":0},{"$f":"'TENDER PACK 2 LNG (Sheet A)'!$H$171","v":0},{"$f":"'TENDER PACK 2 LNG (Sheet A)'!$H$175","v":0},{"$f":"'TENDER PACK 2 LNG (Sheet A)'!$H$177","v":"00:00:00"},{"$f":"'TENDER PACK 2 LNG (Sheet A)'!$H$181","v":0},{"$f":"'TENDER PACK 2 LNG (Sheet A)'!$H$183","v":0},{"$f":"IF('TENDER PACK 2 LNG (Sheet A)'!$Q$185=1,\"12\",IF('TENDER PACK 2 LNG (Sheet A)'!$Q$185=2,\"24\",\"UNCHECKED\"))","v":"24"},{"$f":"'TENDER PACK 2 LNG (Sheet A)'!$H$187","v":0},null,{"$f":"'TENDER PACK 2 LNG (Sheet A)'!D200","v":7},{"$f":"'TENDER PACK 2 LNG (Sheet A)'!$F200","v":0},{"$f":"'TENDER PACK 2 LNG (Sheet A)'!$H200","v":0},{"$f":"'TENDER PACK 2 LNG (Sheet A)'!$J200","v":0},{"$f":"'TENDER PACK 2 LNG (Sheet A)'!$L200","v":0},null,{"$f":"'TENDER PACK 2 LNG (Sheet A)'!$H$206","v":45},{"$f":"'TENDER PACK 2 LNG (Sheet A)'!$H$208","v":45},{"$f":"'TENDER PACK 2 LNG (Sheet A)'!$H$218","v":"Indexed Delivery Charge 1"},{"$f":"'TENDER PACK 2 LNG (Sheet A)'!$H$221","v":0},{"$f":"'TENDER PACK 2 LNG (Sheet A)'!$H$224","v":0},{"$f":"'TENDER PACK 2 LNG (Sheet A)'!$H$227","v":0},{"$f":"'TENDER PACK 2 LNG (Sheet A)'!$H$230","v":0},{"$f":"IF('TENDER PACK 2 LNG (Sheet A)'!#REF!=\"\",\"N\",\"Y\")","v":{"$error":"#REF!"}}]
[null,null,null,null,{"$f":"'TENDER PACK 2 LNG (Sheet A)'!$H$88","v":0},{"$f":"'TENDER PACK 2 LNG (Sheet A)'!$H$90","v":0},{"$f":"'TENDER PACK 2 LNG (Sheet A)'!$H$92","v":0},{"$f":"'TENDER PACK 2 LNG (Sheet A)'!$H$96","v":0},{"$f":"'TENDER PACK 2 LNG (Sheet A)'!$H$97","v":0},{"$f":"'TENDER PACK 2 LNG (Sheet A)'!$H$98","v":0},{"$f":"'TENDER PACK 2 LNG (Sheet A)'!$H$99","v":0},{"$f":"'TENDER PACK 2 LNG (Sheet A)'!$H$100","v":0},{"$f":"'TENDER PACK 2 LNG (Sheet A)'!$H$102","v":0},{"$f":"'TENDER PACK 2 LNG (Sheet A)'!$H$103","v":0},"No",{"$f":"'TENDER PACK 2 LNG (Sheet A)'!$H$128","v":0},{"$f":"'TENDER PACK 2 LNG (Sheet A)'!$H$130","v":0},{"$f":"IF('TENDER PACK 2 LNG (Sheet A)'!$Q$137=1,\"Please Select\",IF('TENDER PACK 2 LNG (Sheet A)'!$Q$137=3,\"Capacity Holder of LNG Importation with Storage\",IF('TENDER PACK 2 LNG (Sheet A)'!$Q$137=2,\"Operator of LNG Importation with Storage\",0)))","v":"Operator of LNG Importation with Storage"},{"$f":"'TENDER PACK 2 LNG (Sheet A)'!$H$139","v":0},{"$f":"'TENDER PACK 2 LNG (Sheet A)'!$H$166","v":0},{"$f":"'TENDER PACK 2 LNG (Sheet A)'!$H$169","v":0},{"$f":"'TENDER PACK 2 LNG (Sheet A)'!$H$171","v":0},{"$f":"'TENDER PACK 2 LNG (Sheet A)'!$H$175","v":0},{"$f":"'TENDER PACK 2 LNG (Sheet A)'!$H$177","v":"00:00:00"},{"$f":"'TENDER PACK 2 LNG (Sheet A)'!$H$181","v":0},{"$f":"'TENDER PACK 2 LNG (Sheet A)'!$H$183","v":0},{"$f":"IF('TENDER PACK 2 LNG (Sheet A)'!$Q$185=1,\"12\",IF('TENDER PACK 2 LNG (Sheet A)'!$Q$185=2,\"24\",\"UNCHECKED\"))","v":"24"},{"$f":"'TENDER PACK 2 LNG (Sheet A)'!$H$187","v":0},null,{"$f":"'TENDER PACK 2 LNG (Sheet A)'!D201","v":8},{"$f":"'TENDER PACK 2 LNG (Sheet A)'!$F201","v":0},{"$f":"'TENDER PACK 2 LNG (Sheet A)'!$H201","v":0},{"$f":"'TENDER PACK 2 LNG (Sheet A)'!$J201","v":0},{"$f":"'TENDER PACK 2 LNG (Sheet A)'!$L201","v":0},null,{"$f":"'TENDER PACK 2 LNG (Sheet A)'!$H$206","v":45},{"$f":"'TENDER PACK 2 LNG (Sheet A)'!$H$208","v":45},{"$f":"'TENDER PACK 2 LNG (Sheet A)'!$H$218","v":"Indexed Delivery Charge 1"},{"$f":"'TENDER PACK 2 LNG (Sheet A)'!$H$221","v":0},{"$f":"'TENDER PACK 2 LNG (Sheet A)'!$H$224","v":0},{"$f":"'TENDER PACK 2 LNG (Sheet A)'!$H$227","v":0},{"$f":"'TENDER PACK 2 LNG (Sheet A)'!$H$230","v":0},{"$f":"IF('TENDER PACK 2 LNG (Sheet A)'!#REF!=\"\",\"N\",\"Y\")","v":{"$error":"#REF!"}}]
[null,null,null,null,{"$f":"'TENDER PACK 2 LNG (Sheet A)'!$H$88","v":0},{"$f":"'TENDER PACK 2 LNG (Sheet A)'!$H$90","v":0},{"$f":"'TENDER PACK 2 LNG (Sheet A)'!$H$92","v":0},{"$f":"'TENDER PACK 2 LNG (Sheet A)'!$H$96","v":0},{"$f":"'TENDER PACK 2 LNG (Sheet A)'!$H$97","v":0},{"$f":"'TENDER PACK 2 LNG (Sheet A)'!$H$98","v":0},{"$f":"'TENDER PACK 2 LNG (Sheet A)'!$H$99","v":0},{"$f":"'TENDER PACK 2 LNG (Sheet A)'!$H$100","v":0},{"$f":"'TENDER PACK 2 LNG (Sheet A)'!$H$102","v":0},{"$f":"'TENDER PACK 2 LNG (Sheet A)'!$H$103","v":0},"No",{"$f":"'TENDER PACK 2 LNG (Sheet A)'!$H$128","v":0},{"$f":"'TENDER PACK 2 LNG (Sheet A)'!$H$130","v":0},{"$f":"IF('TENDER PACK 2 LNG (Sheet A)'!$Q$137=1,\"Please Select\",IF('TENDER PACK 2 LNG (Sheet A)'!$Q$137=3,\"Capacity Holder of LNG Importation with Storage\",IF('TENDER PACK 2 LNG (Sheet A)'!$Q$137=2,\"Operator of LNG Importation with Storage\",0)))","v":"Operator of LNG Importation with Storage"},{"$f":"'TENDER PACK 2 LNG (Sheet A)'!$H$139","v":0},{"$f":"'TENDER PACK 2 LNG (Sheet A)'!$H$166","v":0},{"$f":"'TENDER PACK 2 LNG (Sheet A)'!$H$169","v":0},{"$f":"'TENDER PACK 2 LNG (Sheet A)'!$H$171","v":0},{"$f":"'TENDER PACK 2 LNG (Sheet A)'!$H$175","v":0},{"$f":"'TENDER PACK 2 LNG (Sheet A)'!$H$177","v":"00:00:00"},{"$f":"'TENDER PACK 2 LNG (Sheet A)'!$H$181","v":0},{"$f":"'TENDER PACK 2 LNG (Sheet A)'!$H$183","v":0},{"$f":"IF('TENDER PACK 2 LNG (Sheet A)'!$Q$185=1,\"12\",IF('TENDER PACK 2 LNG (Sheet A)'!$Q$185=2,\"24\",\"UNCHECKED\"))","v":"24"},{"$f":"'TENDER PACK 2 LNG (Sheet A)'!$H$187","v":0},null,{"$f":"'TENDER PACK 2 LNG (Sheet A)'!D202","v":9},{"$f":"'TENDER PACK 2 LNG (Sheet A)'!$F202","v":0},{"$f":"'TENDER PACK 2 LNG (Sheet A)'!$H202","v":0},{"$f":"'TENDER PACK 2 LNG (Sheet A)'!$J202","v":0},{"$f":"'TENDER PACK 2 LNG (Sheet A)'!$L202","v":0},null,{"$f":"'TENDER PACK 2 LNG (Sheet A)'!$H$206","v":45},{"$f":"'TENDER PACK 2 LNG (Sheet A)'!$H$208","v":45},{"$f":"'TENDER PACK 2 LNG (Sheet A)'!$H$218","v":"Indexed Delivery Charge 1"},{"$f":"'TENDER PACK 2 LNG (Sheet A)'!$H$221","v":0},{"$f":"'TENDER PACK 2 LNG (Sheet A)'!$H$224","v":0},{"$f":"'TENDER PACK 2 LNG (Sheet A)'!$H$227","v":0},{"$f":"'TENDER PACK 2 LNG (Sheet A)'!$H$230","v":0},{"$f":"IF('TENDER PACK 2 LNG (Sheet A)'!#REF!=\"\",\"N\",\"Y\")","v":{"$error":"#REF!"}}]
[null,null,null,null,{"$f":"'TENDER PACK 2 LNG (Sheet A)'!$H$88","v":0},{"$f":"'TENDER PACK 2 LNG (Sheet A)'!$H$90","v":0},{"$f":"'TENDER PACK 2 LNG (Sheet A)'!$H$92","v":0},{"$f":"'TENDER PACK 2 LNG (Sheet A)'!$H$96","v":0},{"$f":"'TENDER PACK 2 LNG (Sheet A)'!$H$97","v":0},{"$f":"'TENDER PACK 2 LNG (Sheet A)'!$H$98","v":0},{"$f":"'TENDER PACK 2 LNG (Sheet A)'!$H$99","v":0},{"$f":"'TENDER PACK 2 LNG (Sheet A)'!$H$100","v":0},{"$f":"'TENDER PACK 2 LNG (Sheet A)'!$H$102","v":0},{"$f":"'TENDER PACK 2 LNG (Sheet A)'!$H$103","v":0},"No",{"$f":"'TENDER PACK 2 LNG (Sheet A)'!$H$128","v":0},{"$f":"'TENDER PACK 2 LNG (Sheet A)'!$H$130","v":0},{"$f":"IF('TENDER PACK 2 LNG (Sheet A)'!$Q$137=1,\"Please Select\",IF('TENDER PACK 2 LNG (Sheet A)'!$Q$137=3,\"Capacity Holder of LNG Importation with Storage\",IF('TENDER PACK 2 LNG (Sheet A)'!$Q$137=2,\"Operator of LNG Importation with Storage\",0)))","v":"Operator of LNG Importation with Storage"},{"$f":"'TENDER PACK 2 LNG (Sheet A)'!$H$139","v":0},{"$f":"'TENDER PACK 2 LNG (Sheet A)'!$H$166","v":0},{"$f":"'TENDER PACK 2 LNG (Sheet A)'!$H$169","v":0},{"$f":"'TENDER PACK 2 LNG (Sheet A)'!$H$171","v":0},{"$f":"'TENDER PACK 2 LNG (Sheet A)'!$H$175","v":0},{"$f":"'TENDER PACK 2 LNG (Sheet A)'!$H$177","v":"00:00:00"},{"$f":"'TENDER PACK 2 LNG (Sheet A)'!$H$181","v":0},{"$f":"'TENDER PACK 2 LNG (Sheet A)'!$H$183","v":0},{"$f":"IF('TENDER PACK 2 LNG (Sheet A)'!$Q$185=1,\"12\",IF('TENDER PACK 2 LNG (Sheet A)'!$Q$185=2,\"24\",\"UNCHECKED\"))","v":"24"},{"$f":"'TENDER PACK 2 LNG (Sheet A)'!$H$187","v":0},null,{"$f":"'TENDER PACK 2 LNG (Sheet A)'!D203","v":10},{"$f":"'TENDER PACK 2 LNG (Sheet A)'!$F203","v":0},{"$f":"'TENDER PACK 2 LNG (Sheet A)'!$H203","v":0},{"$f":"'TENDER PACK 2 LNG (Sheet A)'!$J203","v":0},{"$f":"'TENDER PACK 2 LNG (Sheet A)'!$L203","v":0},null,{"$f":"'TENDER PACK 2 LNG (Sheet A)'!$H$206","v":45},{"$f":"'TENDER PACK 2 LNG (Sheet A)'!$H$208","v":45},{"$f":"'TENDER PACK 2 LNG (Sheet A)'!$H$218","v":"Indexed Delivery Charge 1"},{"$f":"'TENDER PACK 2 LNG (Sheet A)'!$H$221","v":0},{"$f":"'TENDER PACK 2 LNG (Sheet A)'!$H$224","v":0},{"$f":"'TENDER PACK 2 LNG (Sheet A)'!$H$227","v":0},{"$f":"'TENDER PACK 2 LNG (Sheet A)'!$H$230","v":0},{"$f":"IF('TENDER PACK 2 LNG (Sheet A)'!#REF!=\"\",\"N\",\"Y\")","v":{"$error":"#REF!"}}]

{"sheet":"TENDER PACK 2 LNG (Sheet B)","index":2,"n_rows":248,"n_cols":18,"rows_kept":248,"cut":false,"hidden":false,"merged":[[202,3,202,4],[202,5,202,6],[202,7,202,8],[202,9,202,10],[202,11,202,12],[202,13,202,14],[203,3,203,4],[203,5,203,6],[203,7,203,8],[203,9,203,10],[203,11,203,12],[203,13,203,14],[200,7,200,8],[200,9,200,10],[200,11,200,12],[200,13,200,14],[201,3,201,4],[201,5,201,6],[201,7,201,8],[201,9,201,10],[201,11,201,12],[201,13,201,14],[200,3,200,4],[200,5,200,6],[198,3,198,4],[198,5,198,6],[198,7,198,8],[198,9,198,10],[198,11,198,12],[198,13,198,14],[199,3,199,4],[199,5,199,6],[199,7,199,8],[199,9,199,10],[199,11,199,12],[199,13,199,14],[192,3,192,4],[192,5,192,6],[192,7,192,8],[192,9,192,10],[192,11,192,12],[192,13,192,14],[193,11,193,12],[193,13,193,14],[194,3,194,4],[194,5,194,6],[194,7,194,8],[194,9,194,10],[194,11,194,12],[194,13,194,14],[91,2,94,2],[127,2,128,2],[165,2,167,2],[176,2,179,2],[96,3,96,6],[96,7,96,14],[97,3,97,6],[97,7,97,14],[102,3,102,6],[102,7,102,14],[104,3,104,14],[106,3,107,14],[122,3,123,14],[125,3,125,14],[98,3,98,6],[98,7,98,14],[99,3,100,6],[99,7,100,14],[101,3,101,6],[101,7,101,14],[129,2,133,2],[134,2,137,2],[138,2,140,2],[160,3,161,14],[82,3,83,14],[85,3,85,14],[95,3,95,6],[95,7,95,14],[87,3,88,6],[87,7,88,14],[89,3,90,6],[89,7,90,14],[91,3,94,6],[91,7,94,14],[3,16,5,16],[13,3,14,14],[16,3,22,14],[17,16,20,16],[43,3,47,14],[43,16,45,16],[49,3,61,14],[53,16,55,16],[23,16,24,16],[24,3,24,14],[25,3,25,14],[27,3,38,14],[27,16,29,16],[42,3,42,14],[2,3,6,14],[163,3,163,14],[165,3,167,6],[165,7,167,12],[165,13,167,14],[127,3,128,6],[127,7,128,14],[129,3,133,6],[129,7,133,14],[134,3,137,6],[134,7,137,14],[138,3,140,6],[138,7,140,14],[184,13,185,14],[189,3,189,14],[191,3,191,4],[191,5,191,6],[189,2,190,2],[180,3,181,6],[180,7,181,14],[165,16,167,16],[168,2,169,2],[168,3,169,6],[168,7,169,12],[168,13,169,14],[172,2,173,2],[172,3,173,6],[172,7,173,12],[172,13,173,14],[191,7,191,8],[191,9,191,10],[191,11,191,12],[191,13,191,14],[170,7,171,12],[170,13,171,14],[170,3,171,6],[170,2,171,2],[196,5,196,6],[196,7,196,8],[196,9,196,10],[196,11,196,12],[196,13,196,14],[197,5,197,6],[197,7,197,8],[193,3,193,4],[193,5,193,6],[193,7,193,8],[193,9,193,10],[196,3,196,4],[197,3,197,4],[197,9,197,10],[195,3,195,4],[195,5,195,6],[195,7,195,8],[195,9,195,10],[195,11,195,12],[195,13,195,14],[197,11,197,12],[197,13,197,14],[229,2,230,2],[223,2,228,2],[231,2,234,2],[232,16,234,16],[231,3,234,6],[231,7,234,14],[229,3,230,6],[229,7,230,12],[229,13,230,14],[223,13,228,14],[223,7,228,12],[223,3,228,6],[217,3,222,6],[217,7,222,12],[217,13,222,14],[217,2,222,2],[205,3,206,6],[205,7,206,12],[205,13,206,14],[212,3,213,14],[215,3,215,14],[205,2,206,2],[207,7,208,12],[207,13,208,14],[207,2,208,2],[207,3,208,6],[141,2,143,2],[141,3,143,6],[141,7,143,14],[8,3,11,9],[8,10,11,10],[8,11,11,14],[186,3,187,6],[186,7,187,12],[186,13,187,14],[186,2,187,2],[180,2,181,2],[174,2,175,2],[174,3,175,6],[174,7,175,12],[174,13,175,14],[176,3,179,6],[176,7,179,12],[176,13,179,14],[182,2,183,2],[182,3,183,6],[182,7,183,14],[184,2,185,2],[184,3,185,6],[184,7,185,12]]}
[]
[]
[null,null,null,"\nTENDER PACK 2\nOPERATING MARGINS - 2023/24 GAS DELIVERY TENDER (LNG)\nSHEET B - OPTIONAL 12 MONTH ALTERNATIVE BID\n"]
[]
[]
[]
[]
[]
[null,null,null,"This tender pack is designed for;\n• LNG Importation with Storage Facility Operators\n• Capacity Holders at LNG Importation with Storage Facilities\n",null,null,null,null,null,null,null,"Submission of this sheet is optional for LNG Tenderers"]
[]
[]
[]
[]
[null,null,null,"Issued 9th December 2022"]
[]
[]
[null,null,null,"Produced by National Grid Gas Transmission  \nNational Grid Gas plc\nNational Grid House\nWarwick Technology Park\nGallows Hill\nWarwick\nCV34 6DA"]
[]
[]
[]
[]
[]
[]
[]
[null,null,null,"Website:"]
[null,null,null,"https://www.nationalgrid.com/uk/gas-transmission/balancing/operating-margins-om"]
[]
[null,null,null,"PLEASE NOTE:\nThis document should be read in conjunction with the template Operating Margins agreements (found on the Operating Margins Homepage) and the document entitled \"Tender Guidance Document 2023/24\".\n\nSpecific guidance on how to complete these tender sheets is provided in Sections 7 & 8 of the Operating Margins Tender Guidance Document with specific cross-references to these tender sheets via superscript numbers adjacent to the relevant fields of information. Please also refer to Section 6 \"Requirements of the Tender Process\" in order to understand what must accompany the tender sheets as part of submission in order that assessment can proceed on any tenders received.\n\nTerms and phrases used in this document have the meanings set out or referred to in the template Operating Margins agreements and/or the Operating Margins Tender Guidance Document."]
[]
[]
[]
[]
[]
[]
[]
[]
[]
[]
[]
[null,null,null,null,null,null,null,null,null,null,null,null,null,null,null,null,"Page 1"]
[]
[]
[null,null,null,"IMPORTANT INFORMATION - PLEASE READ:"]
[null,null,null,"• All parts of 'Sheet A' must be completed by all LNG tenderers and submitted to be eligible for assessment.\n• An LNG tenderer may submit an additional proposal for a 12 month OM service in the form of 'Sheet B', whereby tranches are split differently (Part 5). This is optional. \n\n**Volumes in Sheets A and B will be treated as mutually exclusive - i.e. National Grid will only consider accepting tranche(s) from ONE of Sheet A or Sheet B**"]
[]
[]
[]
[]
[]
[null,null,null,"Completed Tenders should be submitted by 13:00 hours (GMT) on Monday 23rd January 2023 via Ariba.\n\nThe completed Tender Pack should be uploaded with a filename which includes the company name and site.\nAfter uploading the Tender Pack document, terms and conditions must be accepted before submitting.\nSubmissions can be revised until the deadline."]
[]
[]
[]
[]
[]
[]
[]
[]
[]
[]
[]
[]
[]
[]
[]
[]
[]
[]
[]
[]
[]
[]
[]
[]
[]
[]
[]
[]
[]
[null,null,null,null,null,null,null,null,null,null,null,null,null,null,null,null,"Page 2"]
[]
[]
[null,null,null,"2023/24 OM DELIVERY TENDER (LNG)"]
[]
[]
[null,null,null,"Part 1: Tenderer Details"]
[]
[null,null,1,"Tenderer's Company Name\n(including company number)"]
[]
[null,null,2,"Company Representative, Job Title"]
[]
[null,null,3,"Company Representative Address\n(full address including postcode)"]
[]
[]
[]
[null,null,4,"Telephone Number"]
[null,null,5,"Facsimile Number"]
[null,null,6,"Email Address"]
[null,null,7,"Legal Agent Name"]
[null,null,8,"Legal Agent Address"]
[]
[null,null,9,"Shipper Short Code"]
[null,null,10,"Achilles Registration Number"]
[]
[null,null,null,"Part 2"]
[]
[null,null,null,"[See OM Tenderers Contract Response Form if such amendments are proposed]\nIf no amendments are proposed please go to Part 3"]
[]
[]
[]
[]
[]
[]
[]
[]
[]
[]
[]
[]
[null,null,null,null,null,null,null,null,null,null,null,null,null,null,null,null,"Page 3"]
[]
[]
[null,null,null,"2023/24 OM DELIVERY TENDER (LNG)"]
[]
[]
[null,null,null,"Part 3: Facility Details"]
[]
[null,null,11,"Facility Name\n(including company number)"]
[]
[null,null,12,"Facility Location\n(full address including postcode)"]
[]
[]
[]
[]
[null,null,13,"Service Provision Category",null,null,null,null,null,null,null,null,null,null,null,null,null,"Operator of LNG Importation with Storage"]
[null,null,null,null,null,null,null,null,null,null,null,null,null,null,null,null,null,"Capacity Holder of LNG Importation with Storage"]
[null,null,null,null,null,null,null,null,null,null,null,null,null,null,null,null,1]
[]
[null,null,14,"Execution Date For Tenderer’s Agreement With Facility Operator"]
[]
[]
[null,null,15,"Duration of Service",null,null,null,"12 Months (01/05/2023 - 30/04/2024)"]
[]
[]
[]
[]
[]
[]
[]
[]
[]
[]
[]
[]
[]
[]
[]
[null,null,null,null,null,null,null,null,null,null,null,null,null,null,null,null,"Page 4"]
[]
[]
[null,null,null,"2023/24 OM DELIVERY TENDER (LNG)"]
[]
[]
[null,null,null,"Part 4: Deliverability & Availability"]
[]
[null,null,16,"Maximum Delivery Rate (Tendered for the purposes of OM)\n(must be greater or equal to 500,000 kWh/hour)",null,null,null,null,null,null,null,null,null,"kWh/hour"]
[]
[]
[null,null,17,"Minimum Delivery Rate  (Tendered for the purposes of OM)\n(optional) (if left blank delivery deemed at 0)",null,null,null,null,null,null,null,null,null,"kWh/hour"]
[]
[null,null,18,"Maximum SP Delivery Rate (if applicable)",null,null,null,null,null,null,null,null,null,"kWh/hour"]
[]
[null,null,19,"Minimum SP Delivery Rate (if applicable)",null,null,null,null,null,null,null,null,null,"kWh/hour"]
[]
[null,null,20,"Response Time",null,null,null,null,null,null,null,null,null,"Minutes"]
[]
[null,null,21,"Planned Maintenance Periods",null,null,null,null,null,null,null,null,null,"Dates"]
[]
[]
[]
[null,null,22,"Website for Service Availability / Unavailability"]
[]
[null,null,23,"Allocation Agent                                                                  (Name, Address, Tel No)"]
[]
[null,null,24,"Maximum Delivery Duration",null,null,null,null,null,null,null,null,null,"hours",null,null,2]
[]
[null,null,25,"Minimum Delivery Duration\n(Optional) (if left blank delivery deemed at 0)",null,null,null,null,null,null,null,null,null,"hours"]
[]
[]
[null,null,null,"Part 5: Charges"]
[]
[null,null,null,26,null,27,null,28,null,29,null,30,null,31]
[null,null,null,"LNG Procurement Tranche Number",null,"Service Quantity (in kWh)",null,"Estimated Necessary Delivery LNG Quantity kWh",null,"Tranche may only be accepted in full (YES / NO)",null,"Annual Service Fee (in pence per kWh per annum)",null,"Annual Service Fee (£)"]
[null,null,null,1,null,null,null,null,null,null,null,null,null,{"$f":"(F194*L194)/100","v":0}]
[null,null,null,2,null,null,null,null,null,null,null,null,null,{"$f":"(F195*L195)/100","v":0}]
[null,null,null,3,null,null,null,null,null,null,null,null,null,0]
[null,null,null,4,null,null,null,null,null,null,null,null,null,0]
[null,null,null,5,null,null,null,null,null,null,null,null,null,0]
[null,null,null,6,null,null,null,null,null,null,null,null,null,0]
[null,null,null,7,null,null,null,null,null,null,null,null,null,0]
[null,null,null,8,null,null,null,null,null,null,null,null,null,0]
[null,null,null,9,null,null,null,null,null,null,null,null,null,0]
[null,null,null,10,null,null,null,null,null,null,null,null,null,0]
[null,null,null,"Total",null,{"$f":"SUM(F194:G203)","v":0},null,{"$f":"SUM(H194:I203)","v":0},null,null,null,null,null,{"$f":"SUM(N194:O203)","v":0}]
[]
[null,null,32,"Minimum Inventory ",null,null,null,null,null,null,null,null,null,"kWh"]
[]
[null,null,33,"Facility Delivery Capacity \n(nominal)",null,null,null,null,null,null,null,null,null,"kWh/h"]
[]
[null,null,null,null,null,null,null,null,null,null,null,null,null,null,null,null,"Page 5"]
[]
[]
[null,null,null,"2023/24 OM DELIVERY TENDER (LNG)"]
[]
[]
[null,null,null,"Part 5: Charges (Continued)"]
[]
[null,null,34,"Indexed Delivery Charge\n",null,null,null,"Indexed Delivery Charge 1",null,null,null,null,null,"See Guidance Document"]
[]
[]
[]
[]
[]
[null,null,35,"Overrun Delivery Price\n",null,null,null,null,null,null,null,null,null,"See Guidance Document"]
[]
[]
[]
[]
[]
[null,null,36,"Additional SP Delivery Capacity Charge",null,null,null,null,null,null,null,null,null,"p/kWh, See Guidance Document"]
[]
[null,null,37,"Additional Nomination Restrictions "]
[]
[]
[]
[]
[]
[]
[]
[]
[]
[]
[]
[]
[]
[]
[]
[null,null,null,null,null,null,null,null,null,null,null,null,null,null,null,null,"Page 6"]

{"sheet":"DC2B","index":3,"n_rows":13,"n_cols":43,"rows_kept":13,"cut":false,"hidden":true,"merged":[[0,2,1,9]]}
[null,null,"Data Collection Tab for Contracts Team"]
[]
["Tender Pack","Tender Ref","Tranche Ref","Main Ref",{"$f":"'TENDER PACK 2 LNG (Sheet B)'!D88","v":"Tenderer's Company Name\n(including company number)"},{"$f":"'TENDER PACK 2 LNG (Sheet B)'!D90","v":"Company Representative, Job Title"},{"$f":"'TENDER PACK 2 LNG (Sheet B)'!D92","v":"Company Representative Address\n(full address including postcode)"},{"$f":"'TENDER PACK 2 LNG (Sheet B)'!D96","v":"Telephone Number"},{"$f":"'TENDER PACK 2 LNG (Sheet B)'!D97","v":"Facsimile Number"},{"$f":"'TENDER PACK 2 LNG (Sheet B)'!D98","v":"Email Address"},{"$f":"'TENDER PACK 2 LNG (Sheet B)'!D99","v":"Legal Agent Name"},{"$f":"'TENDER PACK 2 LNG (Sheet B)'!D100","v":"Legal Agent Address"},{"$f":"'TENDER PACK 2 LNG (Sheet B)'!D102","v":"Shipper Short Code"},{"$f":"'TENDER PACK 2 LNG (Sheet B)'!D103","v":"Achilles Registration Number"},"Winter Only?",{"$f":"'TENDER PACK 2 LNG (Sheet B)'!D128","v":"Facility Name\n(including company number)"},{"$f":"'TENDER PACK 2 LNG (Sheet B)'!D130","v":"Facility Location\n(full address including postcode)"},{"$f":"'TENDER PACK 2 LNG (Sheet B)'!D135","v":"Service Provision Category"},{"$f":"'TENDER PACK 2 LNG (Sheet B)'!D139","v":"Execution Date For Tenderer’s Agreement With Facility Operator"},{"$f":"'TENDER PACK 2 LNG (Sheet B)'!$D$166","v":"Maximum Delivery Rate (Tendered for the purposes of OM)\n(must be greater or equal to 500,000 kWh/hour)"},{"$f":"'TENDER PACK 2 LNG (Sheet B)'!$D$169","v":"Minimum Delivery Rate  (Tendered for the purposes of OM)\n(optional) (if left blank delivery deemed at 0)"},{"$f":"'TENDER PACK 2 LNG (Sheet B)'!$D$173","v":"Minimum SP Delivery Rate (if applicable)"},{"$f":"'TENDER PACK 2 LNG (Sheet B)'!$D$175","v":"Response Time"},{"$f":"'TENDER PACK 2 LNG (Sheet B)'!$D$177","v":"Planned Maintenance Periods"},{"$f":"'TENDER PACK 2 LNG (Sheet B)'!$D$181","v":"Website for Service Availability / Unavailability"},{"$f":"'TENDER PACK 2 LNG (Sheet B)'!$D$183","v":"Allocation Agent                                                                  (Name, Address, Tel No)"},{"$f":"'TENDER PACK 2 LNG (Sheet B)'!$D$185","v":"Maximum Delivery Duration"},{"$f":"'TENDER PACK 2 LNG (Sheet B)'!$D$187","v":"Minimum Delivery Duration\n(Optional) (if left blank delivery deemed at 0)"},null,{"$f":"'TENDER PACK 2 LNG (Sheet B)'!$D$193","v":"LNG Procurement Tranche Number"},{"$f":"'TENDER PACK 2 LNG (Sheet B)'!$F$193","v":"Service Quantity (in kWh)"},{"$f":"'TENDER PACK 2 LNG (Sheet B)'!$H$193","v":"Estimated Necessary Delivery LNG Quantity kWh"},"Tranche may only be accepted in full (YES / NO)",{"$f":"'TENDER PACK 2 LNG (Sheet B)'!$L$193","v":"Annual Service Fee (in pence per kWh per annum)"},null,{"$f":"'TENDER PACK 2 LNG (Sheet B)'!$D$206","v":"Minimum Inventory "},{"$f":"'TENDER PACK 2 LNG (Sheet B)'!$D$208","v":"Facility Delivery Capacity \n(nominal)"},{"$f":"'TENDER PACK 2 LNG (Sheet B)'!$D$218","v":"Indexed Delivery Charge\n"},{"$f":"'TENDER PACK 2 LNG (Sheet B)'!$D$221","v":0},{"$f":"'TENDER PACK 2 LNG (Sheet B)'!$D$224","v":"Overrun Delivery Price\n"},{"$f":"'TENDER PACK 2 LNG (Sheet B)'!$D$227","v":0},{"$f":"'TENDER PACK 2 LNG (Sheet B)'!$D$230","v":"Additional SP Delivery Capacity Charge"},{"$f":"'TENDER PACK 2 LNG (Sheet B)'!#REF!","v":{"$error":"#REF!"}}]
[null,null,null,{"$f":"A4&\".\"&B4&\".\"&C4","v":".."},{"$f":"'TENDER PACK 2 LNG (Sheet B)'!$H$88","v":0},{"$f":"'TENDER PACK 2 LNG (Sheet B)'!$H$90","v":0},{"$f":"'TENDER PACK 2 LNG (Sheet B)'!$H$92","v":0},{"$f":"'TENDER PACK 2 LNG (Sheet B)'!$H$96","v":0},{"$f":"'TENDER PACK 2 LNG (Sheet B)'!$H$97","v":0},{"$f":"'TENDER PACK 2 LNG (Sheet B)'!$H$98","v":0},{"$f":"'TENDER PACK 2 LNG (Sheet B)'!$H$99","v":0},{"$f":"'TENDER PACK 2 LNG (Sheet B)'!$H$100","v":0},{"$f":"'TENDER PACK 2 LNG (Sheet B)'!$H$102","v":0},{"$f":"'TENDER PACK 2 LNG (Sheet B)'!$H$103","v":0},"No",{"$f":"'TENDER PACK 2 LNG (Sheet B)'!$H$128","v":0},{"$f":"'TENDER PACK 2 LNG (Sheet B)'!$H$130","v":0},{"$f":"IF('TENDER PACK 2 LNG (Sheet B)'!$Q$137=1,\"Please Select\",IF('TENDER PACK 2 LNG (Sheet B)'!$Q$137=3,\"Capacity Holder of LNG Importation with Storage\",IF('TENDER PACK 2 LNG (Sheet B)'!$Q$137=2,\"Operator of LNG Importation with Storage\",0)))","v":"Please Select"},{"$f":"'TENDER PACK 2 LNG (Sheet B)'!$H$139","v":0},{"$f":"'TENDER PACK 2 LNG (Sheet B)'!$H$166","v":0},{"$f":"'TENDER PACK 2 LNG (Sheet B)'!$H$169","v":0},{"$f":"'TENDER PACK 2 LNG (Sheet B)'!$H$173","v":0},{"$f":"'TENDER PACK 2 LNG (Sheet B)'!$H$175","v":0},{"$f":"'TENDER PACK 2 LNG (Sheet B)'!$H$177","v":0},{"$f":"'TENDER PACK 2 LNG (Sheet B)'!$H$181","v":0},{"$f":"'TENDER PACK 2 LNG (Sheet B)'!$H$183","v":0},{"$f":"IF('TENDER PACK 2 LNG (Sheet B)'!$Q$185=1,\"12\",IF('TENDER PACK 2 LNG (Sheet B)'!$Q$185=2,\"24\",\"UNCHECKED\"))","v":"24"},{"$f":"'TENDER PACK 2 LNG (Sheet B)'!$H$187","v":0},null,{"$f":"'TENDER PACK 2 LNG (Sheet B)'!D194","v":1},{"$f":"'TENDER PACK 2 LNG (Sheet B)'!$F194","v":0},{"$f":"'TENDER PACK 2 LNG (Sheet B)'!$H194","v":0},{"$f":"'TENDER PACK 2 LNG (Sheet B)'!$J194","v":0},{"$f":"'TENDER PACK 2 LNG (Sheet B)'!$L194","v":0},null,{"$f":"'TENDER PACK 2 LNG (Sheet B)'!$H$206","v":0},{"$f":"'TENDER PACK 2 LNG (Sheet B)'!$H$208","v":0},{"$f":"'TENDER PACK 2 LNG (Sheet B)'!$H$218","v":"Indexed Delivery Charge 1"},{"$f":"'TENDER PACK 2 LNG (Sheet B)'!$H$221","v":0},{"$f":"'TENDER PACK 2 LNG (Sheet B)'!$H$224","v":0},{"$f":"'TENDER PACK 2 LNG (Sheet B)'!$H$227","v":0},{"$f":"'TENDER PACK 2 LNG (Sheet B)'!$H$230","v":0},{"$f":"IF('TENDER PACK 2 LNG (Sheet B)'!#REF!=\"\",\"N\",\"Y\")","v":{"$error":"#REF!"}}]
[null,null,null,null,{"$f":"'TENDER PACK 2 LNG (Sheet B)'!$H$88","v":0},{"$f":"'TENDER PACK 2 LNG (Sheet B)'!$H$90","v":0},{"$f":"'TENDER PACK 2 LNG (Sheet B)'!$H$92","v":0},{"$f":"'TENDER PACK 2 LNG (Sheet B)'!$H$96","v":0},{"$f":"'TENDER PACK 2 LNG (Sheet B)'!$H$97","v":0},{"$f":"'TENDER PACK 2 LNG (Sheet B)'!$H$98","v":0},{"$f":"'TENDER PACK 2 LNG (Sheet B)'!$H$99","v":0},{"$f":"'TENDER PACK 2 LNG (Sheet B)'!$H$100","v":0},{"$f":"'TENDER PACK 2 LNG (Sheet B)'!$H$102","v":0},{"$f":"'TENDER PACK 2 LNG (Sheet B)'!$H$103","v":0},"No",{"$f":"'TENDER PACK 2 LNG (Sheet B)'!$H$128","v":0},{"$f":"'TENDER PACK 2 LNG (Sheet B)'!$H$130","v":0},{"$f":"IF('TENDER PACK 2 LNG (Sheet B)'!$Q$137=1,\"Please Select\",IF('TENDER PACK 2 LNG (Sheet B)'!$Q$137=3,\"Capacity Holder of LNG Importation with Storage\",IF('TENDER PACK 2 LNG (Sheet B)'!$Q$137=2,\"Operator of LNG Importation with Storage\",0)))","v":"Please Select"},{"$f":"'TENDER PACK 2 LNG (Sheet B)'!$H$139","v":0},{"$f":"'TENDER PACK 2 LNG (Sheet B)'!$H$166","v":0},{"$f":"'TENDER PACK 2 LNG (Sheet B)'!$H$169","v":0},{"$f":"'TENDER PACK 2 LNG (Sheet B)'!$H$173","v":0},{"$f":"'TENDER PACK 2 LNG (Sheet B)'!$H$175","v":0},{"$f":"'TENDER PACK 2 LNG (Sheet B)'!$H$177","v":0},{"$f":"'TENDER PACK 2 LNG (Sheet B)'!$H$181","v":0},{"$f":"'TENDER PACK 2 LNG (Sheet B)'!$H$183","v":0},{"$f":"IF('TENDER PACK 2 LNG (Sheet B)'!$Q$185=1,\"12\",IF('TENDER PACK 2 LNG (Sheet B)'!$Q$185=2,\"24\",\"UNCHECKED\"))","v":"24"},{"$f":"'TENDER PACK 2 LNG (Sheet B)'!$H$187","v":0},null,{"$f":"'TENDER PACK 2 LNG (Sheet B)'!D195","v":2},{"$f":"'TENDER PACK 2 LNG (Sheet B)'!$F195","v":0},{"$f":"'TENDER PACK 2 LNG (Sheet B)'!$H195","v":0},{"$f":"'TENDER PACK 2 LNG (Sheet B)'!$J195","v":0},{"$f":"'TENDER PACK 2 LNG (Sheet B)'!$L195","v":0},null,{"$f":"'TENDER PACK 2 LNG (Sheet B)'!$H$206","v":0},{"$f":"'TENDER PACK 2 LNG (Sheet B)'!$H$208","v":0},{"$f":"'TENDER PACK 2 LNG (Sheet B)'!$H$218","v":"Indexed Delivery Charge 1"},{"$f":"'TENDER PACK 2 LNG (Sheet B)'!$H$221","v":0},{"$f":"'TENDER PACK 2 LNG (Sheet B)'!$H$224","v":0},{"$f":"'TENDER PACK 2 LNG (Sheet B)'!$H$227","v":0},{"$f":"'TENDER PACK 2 LNG (Sheet B)'!$H$230","v":0},{"$f":"IF('TENDER PACK 2 LNG (Sheet B)'!#REF!=\"\",\"N\",\"Y\")","v":{"$error":"#REF!"}}]
[null,null,null,null,{"$f":"'TENDER PACK 2 LNG (Sheet B)'!$H$88","v":0},{"$f":"'TENDER PACK 2 LNG (Sheet B)'!$H$90","v":0},{"$f":"'TENDER PACK 2 LNG (Sheet B)'!$H$92","v":0},{"$f":"'TENDER PACK 2 LNG (Sheet B)'!$H$96","v":0},{"$f":"'TENDER PACK 2 LNG (Sheet B)'!$H$97","v":0},{"$f":"'TENDER PACK 2 LNG (Sheet B)'!$H$98","v":0},{"$f":"'TENDER PACK 2 LNG (Sheet B)'!$H$99","v":0},{"$f":"'TENDER PACK 2 LNG (Sheet B)'!$H$100","v":0},{"$f":"'TENDER PACK 2 LNG (Sheet B)'!$H$102","v":0},{"$f":"'TENDER PACK 2 LNG (Sheet B)'!$H$103","v":0},"No",{"$f":"'TENDER PACK 2 LNG (Sheet B)'!$H$128","v":0},{"$f":"'TENDER PACK 2 LNG (Sheet B)'!$H$130","v":0},{"$f":"IF('TENDER PACK 2 LNG (Sheet B)'!$Q$137=1,\"Please Select\",IF('TENDER PACK 2 LNG (Sheet B)'!$Q$137=3,\"Capacity Holder of LNG Importation with Storage\",IF('TENDER PACK 2 LNG (Sheet B)'!$Q$137=2,\"Operator of LNG Importation with Storage\",0)))","v":"Please Select"},{"$f":"'TENDER PACK 2 LNG (Sheet B)'!$H$139","v":0},{"$f":"'TENDER PACK 2 LNG (Sheet B)'!$H$166","v":0},{"$f":"'TENDER PACK 2 LNG (Sheet B)'!$H$169","v":0},{"$f":"'TENDER PACK 2 LNG (Sheet B)'!$H$173","v":0},{"$f":"'TENDER PACK 2 LNG (Sheet B)'!$H$175","v":0},{"$f":"'TENDER PACK 2 LNG (Sheet B)'!$H$177","v":0},{"$f":"'TENDER PACK 2 LNG (Sheet B)'!$H$181","v":0},{"$f":"'TENDER PACK 2 LNG (Sheet B)'!$H$183","v":0},{"$f":"IF('TENDER PACK 2 LNG (Sheet B)'!$Q$185=1,\"12\",IF('TENDER PACK 2 LNG (Sheet B)'!$Q$185=2,\"24\",\"UNCHECKED\"))","v":"24"},{"$f":"'TENDER PACK 2 LNG (Sheet B)'!$H$187","v":0},null,{"$f":"'TENDER PACK 2 LNG (Sheet B)'!D196","v":3},{"$f":"'TENDER PACK 2 LNG (Sheet B)'!$F196","v":0},{"$f":"'TENDER PACK 2 LNG (Sheet B)'!$H196","v":0},{"$f":"'TENDER PACK 2 LNG (Sheet B)'!$J196","v":0},{"$f":"'TENDER PACK 2 LNG (Sheet B)'!$L196","v":0},null,{"$f":"'TENDER PACK 2 LNG (Sheet B)'!$H$206","v":0},{"$f":"'TENDER PACK 2 LNG (Sheet B)'!$H$208","v":0},{"$f":"'TENDER PACK 2 LNG (Sheet B)'!$H$218","v":"Indexed Delivery Charge 1"},{"$f":"'TENDER PACK 2 LNG (Sheet B)'!$H$221","v":0},{"$f":"'TENDER PACK 2 LNG (Sheet B)'!$H$224","v":0},{"$f":"'TENDER PACK 2 LNG (Sheet B)'!$H$227","v":0},{"$f":"'TENDER PACK 2 LNG (Sheet B)'!$H$230","v":0},{"$f":"IF('TENDER PACK 2 LNG (Sheet B)'!#REF!=\"\",\"N\",\"Y\")","v":{"$error":"#REF!"}}]
[null,null,null,null,{"$f":"'TENDER PACK 2 LNG (Sheet B)'!$H$88","v":0},{"$f":"'TENDER PACK 2 LNG (Sheet B)'!$H$90","v":0},{"$f":"'TENDER PACK 2 LNG (Sheet B)'!$H$92","v":0},{"$f":"'TENDER PACK 2 LNG (Sheet B)'!$H$96","v":0},{"$f":"'TENDER PACK 2 LNG (Sheet B)'!$H$97","v":0},{"$f":"'TENDER PACK 2 LNG (Sheet B)'!$H$98","v":0},{"$f":"'TENDER PACK 2 LNG (Sheet B)'!$H$99","v":0},{"$f":"'TENDER PACK 2 LNG (Sheet B)'!$H$100","v":0},{"$f":"'TENDER PACK 2 LNG (Sheet B)'!$H$102","v":0},{"$f":"'TENDER PACK 2 LNG (Sheet B)'!$H$103","v":0},"No",{"$f":"'TENDER PACK 2 LNG (Sheet B)'!$H$128","v":0},{"$f":"'TENDER PACK 2 LNG (Sheet B)'!$H$130","v":0},{"$f":"IF('TENDER PACK 2 LNG (Sheet B)'!$Q$137=1,\"Please Select\",IF('TENDER PACK 2 LNG (Sheet B)'!$Q$137=3,\"Capacity Holder of LNG Importation with Storage\",IF('TENDER PACK 2 LNG (Sheet B)'!$Q$137=2,\"Operator of LNG Importation with Storage\",0)))","v":"Please Select"},{"$f":"'TENDER PACK 2 LNG (Sheet B)'!$H$139","v":0},{"$f":"'TENDER PACK 2 LNG (Sheet B)'!$H$166","v":0},{"$f":"'TENDER PACK 2 LNG (Sheet B)'!$H$169","v":0},{"$f":"'TENDER PACK 2 LNG (Sheet B)'!$H$173","v":0},{"$f":"'TENDER PACK 2 LNG (Sheet B)'!$H$175","v":0},{"$f":"'TENDER PACK 2 LNG (Sheet B)'!$H$177","v":0},{"$f":"'TENDER PACK 2 LNG (Sheet B)'!$H$181","v":0},{"$f":"'TENDER PACK 2 LNG (Sheet B)'!$H$183","v":0},{"$f":"IF('TENDER PACK 2 LNG (Sheet B)'!$Q$185=1,\"12\",IF('TENDER PACK 2 LNG (Sheet B)'!$Q$185=2,\"24\",\"UNCHECKED\"))","v":"24"},{"$f":"'TENDER PACK 2 LNG (Sheet B)'!$H$187","v":0},null,{"$f":"'TENDER PACK 2 LNG (Sheet B)'!D197","v":4},{"$f":"'TENDER PACK 2 LNG (Sheet B)'!$F197","v":0},{"$f":"'TENDER PACK 2 LNG (Sheet B)'!$H197","v":0},{"$f":"'TENDER PACK 2 LNG (Sheet B)'!$J197","v":0},{"$f":"'TENDER PACK 2 LNG (Sheet B)'!$L197","v":0},null,{"$f":"'TENDER PACK 2 LNG (Sheet B)'!$H$206","v":0},{"$f":"'TENDER PACK 2 LNG (Sheet B)'!$H$208","v":0},{"$f":"'TENDER PACK 2 LNG (Sheet B)'!$H$218","v":"Indexed Delivery Charge 1"},{"$f":"'TENDER PACK 2 LNG (Sheet B)'!$H$221","v":0},{"$f":"'TENDER PACK 2 LNG (Sheet B)'!$H$224","v":0},{"$f":"'TENDER PACK 2 LNG (Sheet B)'!$H$227","v":0},{"$f":"'TENDER PACK 2 LNG (Sheet B)'!$H$230","v":0},{"$f":"IF('TENDER PACK 2 LNG (Sheet B)'!#REF!=\"\",\"N\",\"Y\")","v":{"$error":"#REF!"}}]
[null,null,null,null,{"$f":"'TENDER PACK 2 LNG (Sheet B)'!$H$88","v":0},{"$f":"'TENDER PACK 2 LNG (Sheet B)'!$H$90","v":0},{"$f":"'TENDER PACK 2 LNG (Sheet B)'!$H$92","v":0},{"$f":"'TENDER PACK 2 LNG (Sheet B)'!$H$96","v":0},{"$f":"'TENDER PACK 2 LNG (Sheet B)'!$H$97","v":0},{"$f":"'TENDER PACK 2 LNG (Sheet B)'!$H$98","v":0},{"$f":"'TENDER PACK 2 LNG (Sheet B)'!$H$99","v":0},{"$f":"'TENDER PACK 2 LNG (Sheet B)'!$H$100","v":0},{"$f":"'TENDER PACK 2 LNG (Sheet B)'!$H$102","v":0},{"$f":"'TENDER PACK 2 LNG (Sheet B)'!$H$103","v":0},"No",{"$f":"'TENDER PACK 2 LNG (Sheet B)'!$H$128","v":0},{"$f":"'TENDER PACK 2 LNG (Sheet B)'!$H$130","v":0},{"$f":"IF('TENDER PACK 2 LNG (Sheet B)'!$Q$137=1,\"Please Select\",IF('TENDER PACK 2 LNG (Sheet B)'!$Q$137=3,\"Capacity Holder of LNG Importation with Storage\",IF('TENDER PACK 2 LNG (Sheet B)'!$Q$137=2,\"Operator of LNG Importation with Storage\",0)))","v":"Please Select"},{"$f":"'TENDER PACK 2 LNG (Sheet B)'!$H$139","v":0},{"$f":"'TENDER PACK 2 LNG (Sheet B)'!$H$166","v":0},{"$f":"'TENDER PACK 2 LNG (Sheet B)'!$H$169","v":0},{"$f":"'TENDER PACK 2 LNG (Sheet B)'!$H$173","v":0},{"$f":"'TENDER PACK 2 LNG (Sheet B)'!$H$175","v":0},{"$f":"'TENDER PACK 2 LNG (Sheet B)'!$H$177","v":0},{"$f":"'TENDER PACK 2 LNG (Sheet B)'!$H$181","v":0},{"$f":"'TENDER PACK 2 LNG (Sheet B)'!$H$183","v":0},{"$f":"IF('TENDER PACK 2 LNG (Sheet B)'!$Q$185=1,\"12\",IF('TENDER PACK 2 LNG (Sheet B)'!$Q$185=2,\"24\",\"UNCHECKED\"))","v":"24"},{"$f":"'TENDER PACK 2 LNG (Sheet B)'!$H$187","v":0},null,{"$f":"'TENDER PACK 2 LNG (Sheet B)'!D198","v":5},{"$f":"'TENDER PACK 2 LNG (Sheet B)'!$F198","v":0},{"$f":"'TENDER PACK 2 LNG (Sheet B)'!$H198","v":0},{"$f":"'TENDER PACK 2 LNG (Sheet B)'!$J198","v":0},{"$f":"'TENDER PACK 2 LNG (Sheet B)'!$L198","v":0},null,{"$f":"'TENDER PACK 2 LNG (Sheet B)'!$H$206","v":0},{"$f":"'TENDER PACK 2 LNG (Sheet B)'!$H$208","v":0},{"$f":"'TENDER PACK 2 LNG (Sheet B)'!$H$218","v":"Indexed Delivery Charge 1"},{"$f":"'TENDER PACK 2 LNG (Sheet B)'!$H$221","v":0},{"$f":"'TENDER PACK 2 LNG (Sheet B)'!$H$224","v":0},{"$f":"'TENDER PACK 2 LNG (Sheet B)'!$H$227","v":0},{"$f":"'TENDER PACK 2 LNG (Sheet B)'!$H$230","v":0},{"$f":"IF('TENDER PACK 2 LNG (Sheet B)'!#REF!=\"\",\"N\",\"Y\")","v":{"$error":"#REF!"}}]
[null,null,null,null,{"$f":"'TENDER PACK 2 LNG (Sheet B)'!$H$88","v":0},{"$f":"'TENDER PACK 2 LNG (Sheet B)'!$H$90","v":0},{"$f":"'TENDER PACK 2 LNG (Sheet B)'!$H$92","v":0},{"$f":"'TENDER PACK 2 LNG (Sheet B)'!$H$96","v":0},{"$f":"'TENDER PACK 2 LNG (Sheet B)'!$H$97","v":0},{"$f":"'TENDER PACK 2 LNG (Sheet B)'!$H$98","v":0},{"$f":"'TENDER PACK 2 LNG (Sheet B)'!$H$99","v":0},{"$f":"'TENDER PACK 2 LNG (Sheet B)'!$H$100","v":0},{"$f":"'TENDER PACK 2 LNG (Sheet B)'!$H$102","v":0},{"$f":"'TENDER PACK 2 LNG (Sheet B)'!$H$103","v":0},"No",{"$f":"'TENDER PACK 2 LNG (Sheet B)'!$H$128","v":0},{"$f":"'TENDER PACK 2 LNG (Sheet B)'!$H$130","v":0},{"$f":"IF('TENDER PACK 2 LNG (Sheet B)'!$Q$137=1,\"Please Select\",IF('TENDER PACK 2 LNG (Sheet B)'!$Q$137=3,\"Capacity Holder of LNG Importation with Storage\",IF('TENDER PACK 2 LNG (Sheet B)'!$Q$137=2,\"Operator of LNG Importation with Storage\",0)))","v":"Please Select"},{"$f":"'TENDER PACK 2 LNG (Sheet B)'!$H$139","v":0},{"$f":"'TENDER PACK 2 LNG (Sheet B)'!$H$166","v":0},{"$f":"'TENDER PACK 2 LNG (Sheet B)'!$H$169","v":0},{"$f":"'TENDER PACK 2 LNG (Sheet B)'!$H$173","v":0},{"$f":"'TENDER PACK 2 LNG (Sheet B)'!$H$175","v":0},{"$f":"'TENDER PACK 2 LNG (Sheet B)'!$H$177","v":0},{"$f":"'TENDER PACK 2 LNG (Sheet B)'!$H$181","v":0},{"$f":"'TENDER PACK 2 LNG (Sheet B)'!$H$183","v":0},{"$f":"IF('TENDER PACK 2 LNG (Sheet B)'!$Q$185=1,\"12\",IF('TENDER PACK 2 LNG (Sheet B)'!$Q$185=2,\"24\",\"UNCHECKED\"))","v":"24"},{"$f":"'TENDER PACK 2 LNG (Sheet B)'!$H$187","v":0},null,{"$f":"'TENDER PACK 2 LNG (Sheet B)'!D199","v":6},{"$f":"'TENDER PACK 2 LNG (Sheet B)'!$F199","v":0},{"$f":"'TENDER PACK 2 LNG (Sheet B)'!$H199","v":0},{"$f":"'TENDER PACK 2 LNG (Sheet B)'!$J199","v":0},{"$f":"'TENDER PACK 2 LNG (Sheet B)'!$L199","v":0},null,{"$f":"'TENDER PACK 2 LNG (Sheet B)'!$H$206","v":0},{"$f":"'TENDER PACK 2 LNG (Sheet B)'!$H$208","v":0},{"$f":"'TENDER PACK 2 LNG (Sheet B)'!$H$218","v":"Indexed Delivery Charge 1"},{"$f":"'TENDER PACK 2 LNG (Sheet B)'!$H$221","v":0},{"$f":"'TENDER PACK 2 LNG (Sheet B)'!$H$224","v":0},{"$f":"'TENDER PACK 2 LNG (Sheet B)'!$H$227","v":0},{"$f":"'TENDER PACK 2 LNG (Sheet B)'!$H$230","v":0},{"$f":"IF('TENDER PACK 2 LNG (Sheet B)'!#REF!=\"\",\"N\",\"Y\")","v":{"$error":"#REF!"}}]
[null,null,null,null,{"$f":"'TENDER PACK 2 LNG (Sheet B)'!$H$88","v":0},{"$f":"'TENDER PACK 2 LNG (Sheet B)'!$H$90","v":0},{"$f":"'TENDER PACK 2 LNG (Sheet B)'!$H$92","v":0},{"$f":"'TENDER PACK 2 LNG (Sheet B)'!$H$96","v":0},{"$f":"'TENDER PACK 2 LNG (Sheet B)'!$H$97","v":0},{"$f":"'TENDER PACK 2 LNG (Sheet B)'!$H$98","v":0},{"$f":"'TENDER PACK 2 LNG (Sheet B)'!$H$99","v":0},{"$f":"'TENDER PACK 2 LNG (Sheet B)'!$H$100","v":0},{"$f":"'TENDER PACK 2 LNG (Sheet B)'!$H$102","v":0},{"$f":"'TENDER PACK 2 LNG (Sheet B)'!$H$103","v":0},"No",{"$f":"'TENDER PACK 2 LNG (Sheet B)'!$H$128","v":0},{"$f":"'TENDER PACK 2 LNG (Sheet B)'!$H$130","v":0},{"$f":"IF('TENDER PACK 2 LNG (Sheet B)'!$Q$137=1,\"Please Select\",IF('TENDER PACK 2 LNG (Sheet B)'!$Q$137=3,\"Capacity Holder of LNG Importation with Storage\",IF('TENDER PACK 2 LNG (Sheet B)'!$Q$137=2,\"Operator of LNG Importation with Storage\",0)))","v":"Please Select"},{"$f":"'TENDER PACK 2 LNG (Sheet B)'!$H$139","v":0},{"$f":"'TENDER PACK 2 LNG (Sheet B)'!$H$166","v":0},{"$f":"'TENDER PACK 2 LNG (Sheet B)'!$H$169","v":0},{"$f":"'TENDER PACK 2 LNG (Sheet B)'!$H$173","v":0},{"$f":"'TENDER PACK 2 LNG (Sheet B)'!$H$175","v":0},{"$f":"'TENDER PACK 2 LNG (Sheet B)'!$H$177","v":0},{"$f":"'TENDER PACK 2 LNG (Sheet B)'!$H$181","v":0},{"$f":"'TENDER PACK 2 LNG (Sheet B)'!$H$183","v":0},{"$f":"IF('TENDER PACK 2 LNG (Sheet B)'!$Q$185=1,\"12\",IF('TENDER PACK 2 LNG (Sheet B)'!$Q$185=2,\"24\",\"UNCHECKED\"))","v":"24"},{"$f":"'TENDER PACK 2 LNG (Sheet B)'!$H$187","v":0},null,{"$f":"'TENDER PACK 2 LNG (Sheet B)'!D200","v":7},{"$f":"'TENDER PACK 2 LNG (Sheet B)'!$F200","v":0},{"$f":"'TENDER PACK 2 LNG (Sheet B)'!$H200","v":0},{"$f":"'TENDER PACK 2 LNG (Sheet B)'!$J200","v":0},{"$f":"'TENDER PACK 2 LNG (Sheet B)'!$L200","v":0},null,{"$f":"'TENDER PACK 2 LNG (Sheet B)'!$H$206","v":0},{"$f":"'TENDER PACK 2 LNG (Sheet B)'!$H$208","v":0},{"$f":"'TENDER PACK 2 LNG (Sheet B)'!$H$218","v":"Indexed Delivery Charge 1"},{"$f":"'TENDER PACK 2 LNG (Sheet B)'!$H$221","v":0},{"$f":"'TENDER PACK 2 LNG (Sheet B)'!$H$224","v":0},{"$f":"'TENDER PACK 2 LNG (Sheet B)'!$H$227","v":0},{"$f":"'TENDER PACK 2 LNG (Sheet B)'!$H$230","v":0},{"$f":"IF('TENDER PACK 2 LNG (Sheet B)'!#REF!=\"\",\"N\",\"Y\")","v":{"$error":"#REF!"}}]
[null,null,null,null,{"$f":"'TENDER PACK 2 LNG (Sheet B)'!$H$88","v":0},{"$f":"'TENDER PACK 2 LNG (Sheet B)'!$H$90","v":0},{"$f":"'TENDER PACK 2 LNG (Sheet B)'!$H$92","v":0},{"$f":"'TENDER PACK 2 LNG (Sheet B)'!$H$96","v":0},{"$f":"'TENDER PACK 2 LNG (Sheet B)'!$H$97","v":0},{"$f":"'TENDER PACK 2 LNG (Sheet B)'!$H$98","v":0},{"$f":"'TENDER PACK 2 LNG (Sheet B)'!$H$99","v":0},{"$f":"'TENDER PACK 2 LNG (Sheet B)'!$H$100","v":0},{"$f":"'TENDER PACK 2 LNG (Sheet B)'!$H$102","v":0},{"$f":"'TENDER PACK 2 LNG (Sheet B)'!$H$103","v":0},"No",{"$f":"'TENDER PACK 2 LNG (Sheet B)'!$H$128","v":0},{"$f":"'TENDER PACK 2 LNG (Sheet B)'!$H$130","v":0},{"$f":"IF('TENDER PACK 2 LNG (Sheet B)'!$Q$137=1,\"Please Select\",IF('TENDER PACK 2 LNG (Sheet B)'!$Q$137=3,\"Capacity Holder of LNG Importation with Storage\",IF('TENDER PACK 2 LNG (Sheet B)'!$Q$137=2,\"Operator of LNG Importation with Storage\",0)))","v":"Please Select"},{"$f":"'TENDER PACK 2 LNG (Sheet B)'!$H$139","v":0},{"$f":"'TENDER PACK 2 LNG (Sheet B)'!$H$166","v":0},{"$f":"'TENDER PACK 2 LNG (Sheet B)'!$H$169","v":0},{"$f":"'TENDER PACK 2 LNG (Sheet B)'!$H$173","v":0},{"$f":"'TENDER PACK 2 LNG (Sheet B)'!$H$175","v":0},{"$f":"'TENDER PACK 2 LNG (Sheet B)'!$H$177","v":0},{"$f":"'TENDER PACK 2 LNG (Sheet B)'!$H$181","v":0},{"$f":"'TENDER PACK 2 LNG (Sheet B)'!$H$183","v":0},{"$f":"IF('TENDER PACK 2 LNG (Sheet B)'!$Q$185=1,\"12\",IF('TENDER PACK 2 LNG (Sheet B)'!$Q$185=2,\"24\",\"UNCHECKED\"))","v":"24"},{"$f":"'TENDER PACK 2 LNG (Sheet B)'!$H$187","v":0},null,{"$f":"'TENDER PACK 2 LNG (Sheet B)'!D201","v":8},{"$f":"'TENDER PACK 2 LNG (Sheet B)'!$F201","v":0},{"$f":"'TENDER PACK 2 LNG (Sheet B)'!$H201","v":0},{"$f":"'TENDER PACK 2 LNG (Sheet B)'!$J201","v":0},{"$f":"'TENDER PACK 2 LNG (Sheet B)'!$L201","v":0},null,{"$f":"'TENDER PACK 2 LNG (Sheet B)'!$H$206","v":0},{"$f":"'TENDER PACK 2 LNG (Sheet B)'!$H$208","v":0},{"$f":"'TENDER PACK 2 LNG (Sheet B)'!$H$218","v":"Indexed Delivery Charge 1"},{"$f":"'TENDER PACK 2 LNG (Sheet B)'!$H$221","v":0},{"$f":"'TENDER PACK 2 LNG (Sheet B)'!$H$224","v":0},{"$f":"'TENDER PACK 2 LNG (Sheet B)'!$H$227","v":0},{"$f":"'TENDER PACK 2 LNG (Sheet B)'!$H$230","v":0},{"$f":"IF('TENDER PACK 2 LNG (Sheet B)'!#REF!=\"\",\"N\",\"Y\")","v":{"$error":"#REF!"}}]
[null,null,null,null,{"$f":"'TENDER PACK 2 LNG (Sheet B)'!$H$88","v":0},{"$f":"'TENDER PACK 2 LNG (Sheet B)'!$H$90","v":0},{"$f":"'TENDER PACK 2 LNG (Sheet B)'!$H$92","v":0},{"$f":"'TENDER PACK 2 LNG (Sheet B)'!$H$96","v":0},{"$f":"'TENDER PACK 2 LNG (Sheet B)'!$H$97","v":0},{"$f":"'TENDER PACK 2 LNG (Sheet B)'!$H$98","v":0},{"$f":"'TENDER PACK 2 LNG (Sheet B)'!$H$99","v":0},{"$f":"'TENDER PACK 2 LNG (Sheet B)'!$H$100","v":0},{"$f":"'TENDER PACK 2 LNG (Sheet B)'!$H$102","v":0},{"$f":"'TENDER PACK 2 LNG (Sheet B)'!$H$103","v":0},"No",{"$f":"'TENDER PACK 2 LNG (Sheet B)'!$H$128","v":0},{"$f":"'TENDER PACK 2 LNG (Sheet B)'!$H$130","v":0},{"$f":"IF('TENDER PACK 2 LNG (Sheet B)'!$Q$137=1,\"Please Select\",IF('TENDER PACK 2 LNG (Sheet B)'!$Q$137=3,\"Capacity Holder of LNG Importation with Storage\",IF('TENDER PACK 2 LNG (Sheet B)'!$Q$137=2,\"Operator of LNG Importation with Storage\",0)))","v":"Please Select"},{"$f":"'TENDER PACK 2 LNG (Sheet B)'!$H$139","v":0},{"$f":"'TENDER PACK 2 LNG (Sheet B)'!$H$166","v":0},{"$f":"'TENDER PACK 2 LNG (Sheet B)'!$H$169","v":0},{"$f":"'TENDER PACK 2 LNG (Sheet B)'!$H$173","v":0},{"$f":"'TENDER PACK 2 LNG (Sheet B)'!$H$175","v":0},{"$f":"'TENDER PACK 2 LNG (Sheet B)'!$H$177","v":0},{"$f":"'TENDER PACK 2 LNG (Sheet B)'!$H$181","v":0},{"$f":"'TENDER PACK 2 LNG (Sheet B)'!$H$183","v":0},{"$f":"IF('TENDER PACK 2 LNG (Sheet B)'!$Q$185=1,\"12\",IF('TENDER PACK 2 LNG (Sheet B)'!$Q$185=2,\"24\",\"UNCHECKED\"))","v":"24"},{"$f":"'TENDER PACK 2 LNG (Sheet B)'!$H$187","v":0},null,{"$f":"'TENDER PACK 2 LNG (Sheet B)'!D202","v":9},{"$f":"'TENDER PACK 2 LNG (Sheet B)'!$F202","v":0},{"$f":"'TENDER PACK 2 LNG (Sheet B)'!$H202","v":0},{"$f":"'TENDER PACK 2 LNG (Sheet B)'!$J202","v":0},{"$f":"'TENDER PACK 2 LNG (Sheet B)'!$L202","v":0},null,{"$f":"'TENDER PACK 2 LNG (Sheet B)'!$H$206","v":0},{"$f":"'TENDER PACK 2 LNG (Sheet B)'!$H$208","v":0},{"$f":"'TENDER PACK 2 LNG (Sheet B)'!$H$218","v":"Indexed Delivery Charge 1"},{"$f":"'TENDER PACK 2 LNG (Sheet B)'!$H$221","v":0},{"$f":"'TENDER PACK 2 LNG (Sheet B)'!$H$224","v":0},{"$f":"'TENDER PACK 2 LNG (Sheet B)'!$H$227","v":0},{"$f":"'TENDER PACK 2 LNG (Sheet B)'!$H$230","v":0},{"$f":"IF('TENDER PACK 2 LNG (Sheet B)'!#REF!=\"\",\"N\",\"Y\")","v":{"$error":"#REF!"}}]
[null,null,null,null,{"$f":"'TENDER PACK 2 LNG (Sheet B)'!$H$88","v":0},{"$f":"'TENDER PACK 2 LNG (Sheet B)'!$H$90","v":0},{"$f":"'TENDER PACK 2 LNG (Sheet B)'!$H$92","v":0},{"$f":"'TENDER PACK 2 LNG (Sheet B)'!$H$96","v":0},{"$f":"'TENDER PACK 2 LNG (Sheet B)'!$H$97","v":0},{"$f":"'TENDER PACK 2 LNG (Sheet B)'!$H$98","v":0},{"$f":"'TENDER PACK 2 LNG (Sheet B)'!$H$99","v":0},{"$f":"'TENDER PACK 2 LNG (Sheet B)'!$H$100","v":0},{"$f":"'TENDER PACK 2 LNG (Sheet B)'!$H$102","v":0},{"$f":"'TENDER PACK 2 LNG (Sheet B)'!$H$103","v":0},"No",{"$f":"'TENDER PACK 2 LNG (Sheet B)'!$H$128","v":0},{"$f":"'TENDER PACK 2 LNG (Sheet B)'!$H$130","v":0},{"$f":"IF('TENDER PACK 2 LNG (Sheet B)'!$Q$137=1,\"Please Select\",IF('TENDER PACK 2 LNG (Sheet B)'!$Q$137=3,\"Capacity Holder of LNG Importation with Storage\",IF('TENDER PACK 2 LNG (Sheet B)'!$Q$137=2,\"Operator of LNG Importation with Storage\",0)))","v":"Please Select"},{"$f":"'TENDER PACK 2 LNG (Sheet B)'!$H$139","v":0},{"$f":"'TENDER PACK 2 LNG (Sheet B)'!$H$166","v":0},{"$f":"'TENDER PACK 2 LNG (Sheet B)'!$H$169","v":0},{"$f":"'TENDER PACK 2 LNG (Sheet B)'!$H$173","v":0},{"$f":"'TENDER PACK 2 LNG (Sheet B)'!$H$175","v":0},{"$f":"'TENDER PACK 2 LNG (Sheet B)'!$H$177","v":0},{"$f":"'TENDER PACK 2 LNG (Sheet B)'!$H$181","v":0},{"$f":"'TENDER PACK 2 LNG (Sheet B)'!$H$183","v":0},{"$f":"IF('TENDER PACK 2 LNG (Sheet B)'!$Q$185=1,\"12\",IF('TENDER PACK 2 LNG (Sheet B)'!$Q$185=2,\"24\",\"UNCHECKED\"))","v":"24"},{"$f":"'TENDER PACK 2 LNG (Sheet B)'!$H$187","v":0},null,{"$f":"'TENDER PACK 2 LNG (Sheet B)'!D203","v":10},{"$f":"'TENDER PACK 2 LNG (Sheet B)'!$F203","v":0},{"$f":"'TENDER PACK 2 LNG (Sheet B)'!$H203","v":0},{"$f":"'TENDER PACK 2 LNG (Sheet B)'!$J203","v":0},{"$f":"'TENDER PACK 2 LNG (Sheet B)'!$L203","v":0},null,{"$f":"'TENDER PACK 2 LNG (Sheet B)'!$H$206","v":0},{"$f":"'TENDER PACK 2 LNG (Sheet B)'!$H$208","v":0},{"$f":"'TENDER PACK 2 LNG (Sheet B)'!$H$218","v":"Indexed Delivery Charge 1"},{"$f":"'TENDER PACK 2 LNG (Sheet B)'!$H$221","v":0},{"$f":"'TENDER PACK 2 LNG (Sheet B)'!$H$224","v":0},{"$f":"'TENDER PACK 2 LNG (Sheet B)'!$H$227","v":0},{"$f":"'TENDER PACK 2 LNG (Sheet B)'!$H$230","v":0},{"$f":"IF('TENDER PACK 2 LNG (Sheet B)'!#REF!=\"\",\"N\",\"Y\")","v":{"$error":"#REF!"}}]

{"sheet":"DC2C","index":4,"n_rows":13,"n_cols":43,"rows_kept":13,"cut":false,"hidden":true,"merged":[[0,2,1,9]]}
[null,null,"Data Collection Tab for Contracts Team"]
[]
["Tender Pack","Tender Ref","Tranche Ref","Main Ref",{"$f":"#REF!","v":{"$error":"#REF!"}},{"$f":"#REF!","v":{"$error":"#REF!"}},{"$f":"#REF!","v":{"$error":"#REF!"}},{"$f":"#REF!","v":{"$error":"#REF!"}},{"$f":"#REF!","v":{"$error":"#REF!"}},{"$f":"#REF!","v":{"$error":"#REF!"}},{"$f":"#REF!","v":{"$error":"#REF!"}},{"$f":"#REF!","v":{"$error":"#REF!"}},{"$f":"#REF!","v":{"$error":"#REF!"}},{"$f":"#REF!","v":{"$error":"#REF!"}},"Winter Only?",{"$f":"#REF!","v":{"$error":"#REF!"}},{"$f":"#REF!","v":{"$error":"#REF!"}},{"$f":"#REF!","v":{"$error":"#REF!"}},{"$f":"#REF!","v":{"$error":"#REF!"}},{"$f":"#REF!","v":{"$error":"#REF!"}},{"$f":"#REF!","v":{"$error":"#REF!"}},{"$f":"#REF!","v":{"$error":"#REF!"}},{"$f":"#REF!","v":{"$error":"#REF!"}},{"$f":"#REF!","v":{"$error":"#REF!"}},{"$f":"#REF!","v":{"$error":"#REF!"}},{"$f":"#REF!","v":{"$error":"#REF!"}},{"$f":"#REF!","v":{"$error":"#REF!"}},{"$f":"#REF!","v":{"$error":"#REF!"}},null,{"$f":"#REF!","v":{"$error":"#REF!"}},{"$f":"#REF!","v":{"$error":"#REF!"}},{"$f":"#REF!","v":{"$error":"#REF!"}},"Tranche may only be accepted in full (YES / NO)",{"$f":"#REF!","v":{"$error":"#REF!"}},null,{"$f":"#REF!","v":{"$error":"#REF!"}},{"$f":"#REF!","v":{"$error":"#REF!"}},{"$f":"#REF!","v":{"$error":"#REF!"}},{"$f":"#REF!","v":{"$error":"#REF!"}},{"$f":"#REF!","v":{"$error":"#REF!"}},{"$f":"#REF!","v":{"$error":"#REF!"}},{"$f":"#REF!","v":{"$error":"#REF!"}},{"$f":"#REF!","v":{"$error":"#REF!"}}]
[null,null,null,{"$f":"A4&\".\"&B4&\".\"&C4","v":".."},{"$f":"#REF!","v":{"$error":"#REF!"}},{"$f":"#REF!","v":{"$error":"#REF!"}},{"$f":"#REF!","v":{"$error":"#REF!"}},{"$f":"#REF!","v":{"$error":"#REF!"}},{"$f":"#REF!","v":{"$error":"#REF!"}},{"$f":"#REF!","v":{"$error":"#REF!"}},{"$f":"#REF!","v":{"$error":"#REF!"}},{"$f":"#REF!","v":{"$error":"#REF!"}},{"$f":"#REF!","v":{"$error":"#REF!"}},{"$f":"#REF!","v":{"$error":"#REF!"}},"Yes",{"$f":"#REF!","v":{"$error":"#REF!"}},{"$f":"#REF!","v":{"$error":"#REF!"}},{"$f":"IF(#REF!=1,\"Please Select\",IF(#REF!=3,\"Capacity Holder of LNG Importation with Storage\",IF(#REF!=2,\"Operator of LNG Importation with Storage\",0)))","v":{"$error":"#REF!"}},{"$f":"#REF!","v":{"$error":"#REF!"}},{"$f":"#REF!","v":{"$error":"#REF!"}},{"$f":"#REF!","v":{"$error":"#REF!"}},{"$f":"#REF!","v":{"$error":"#REF!"}},{"$f":"#REF!","v":{"$error":"#REF!"}},{"$f":"#REF!","v":{"$error":"#REF!"}},{"$f":"#REF!","v":{"$error":"#REF!"}},{"$f":"#REF!","v":{"$error":"#REF!"}},{"$f":"IF(#REF!=1,\"12\",IF(#REF!=2,\"24\",\"UNCHECKED\"))","v":{"$error":"#REF!"}},{"$f":"#REF!","v":{"$error":"#REF!"}},null,{"$f":"#REF!","v":{"$error":"#REF!"}},{"$f":"#REF!","v":{"$error":"#REF!"}},{"$f":"#REF!","v":{"$error":"#REF!"}},{"$f":"#REF!","v":{"$error":"#REF!"}},{"$f":"#REF!","v":{"$error":"#REF!"}},null,{"$f":"#REF!","v":{"$error":"#REF!"}},{"$f":"#REF!","v":{"$error":"#REF!"}},{"$f":"#REF!","v":{"$error":"#REF!"}},{"$f":"#REF!","v":{"$error":"#REF!"}},{"$f":"#REF!","v":{"$error":"#REF!"}},{"$f":"#REF!","v":{"$error":"#REF!"}},{"$f":"#REF!","v":{"$error":"#REF!"}},{"$f":"IF(#REF!=\"\",\"N\",\"Y\")","v":{"$error":"#REF!"}}]
[null,null,null,null,{"$f":"#REF!","v":{"$error":"#REF!"}},{"$f":"#REF!","v":{"$error":"#REF!"}},{"$f":"#REF!","v":{"$error":"#REF!"}},{"$f":"#REF!","v":{"$error":"#REF!"}},{"$f":"#REF!","v":{"$error":"#REF!"}},{"$f":"#REF!","v":{"$error":"#REF!"}},{"$f":"#REF!","v":{"$error":"#REF!"}},{"$f":"#REF!","v":{"$error":"#REF!"}},{"$f":"#REF!","v":{"$error":"#REF!"}},{"$f":"#REF!","v":{"$error":"#REF!"}},"Yes",{"$f":"#REF!","v":{"$error":"#REF!"}},{"$f":"#REF!","v":{"$error":"#REF!"}},{"$f":"IF(#REF!=1,\"Please Select\",IF(#REF!=3,\"Capacity Holder of LNG Importation with Storage\",IF(#REF!=2,\"Operator of LNG Importation with Storage\",0)))","v":{"$error":"#REF!"}},{"$f":"#REF!","v":{"$error":"#REF!"}},{"$f":"#REF!","v":{"$error":"#REF!"}},{"$f":"#REF!","v":{"$error":"#REF!"}},{"$f":"#REF!","v":{"$error":"#REF!"}},{"$f":"#REF!","v":{"$error":"#REF!"}},{"$f":"#REF!","v":{"$error":"#REF!"}},{"$f":"#REF!","v":{"$error":"#REF!"}},{"$f":"#REF!","v":{"$error":"#REF!"}},{"$f":"IF(#REF!=1,\"12\",IF(#REF!=2,\"24\",\"UNCHECKED\"))","v":{"$error":"#REF!"}},{"$f":"#REF!","v":{"$error":"#REF!"}},null,{"$f":"#REF!","v":{"$error":"#REF!"}},{"$f":"#REF!","v":{"$error":"#REF!"}},{"$f":"#REF!","v":{"$error":"#REF!"}},{"$f":"#REF!","v":{"$error":"#REF!"}},{"$f":"#REF!","v":{"$error":"#REF!"}},null,{"$f":"#REF!","v":{"$error":"#REF!"}},{"$f":"#REF!","v":{"$error":"#REF!"}},{"$f":"#REF!","v":{"$error":"#REF!"}},{"$f":"#REF!","v":{"$error":"#REF!"}},{"$f":"#REF!","v":{"$error":"#REF!"}},{"$f":"#REF!","v":{"$error":"#REF!"}},{"$f":"#REF!","v":{"$error":"#REF!"}},{"$f":"IF(#REF!=\"\",\"N\",\"Y\")","v":{"$error":"#REF!"}}]
[null,null,null,null,{"$f":"#REF!","v":{"$error":"#REF!"}},{"$f":"#REF!","v":{"$error":"#REF!"}},{"$f":"#REF!","v":{"$error":"#REF!"}},{"$f":"#REF!","v":{"$error":"#REF!"}},{"$f":"#REF!","v":{"$error":"#REF!"}},{"$f":"#REF!","v":{"$error":"#REF!"}},{"$f":"#REF!","v":{"$error":"#REF!"}},{"$f":"#REF!","v":{"$error":"#REF!"}},{"$f":"#REF!","v":{"$error":"#REF!"}},{"$f":"#REF!","v":{"$error":"#REF!"}},"Yes",{"$f":"#REF!","v":{"$error":"#REF!"}},{"$f":"#REF!","v":{"$error":"#REF!"}},{"$f":"IF(#REF!=1,\"Please Select\",IF(#REF!=3,\"Capacity Holder of LNG Importation with Storage\",IF(#REF!=2,\"Operator of LNG Importation with Storage\",0)))","v":{"$error":"#REF!"}},{"$f":"#REF!","v":{"$error":"#REF!"}},{"$f":"#REF!","v":{"$error":"#REF!"}},{"$f":"#REF!","v":{"$error":"#REF!"}},{"$f":"#REF!","v":{"$error":"#REF!"}},{"$f":"#REF!","v":{"$error":"#REF!"}},{"$f":"#REF!","v":{"$error":"#REF!"}},{"$f":"#REF!","v":{"$error":"#REF!"}},{"$f":"#REF!","v":{"$error":"#REF!"}},{"$f":"IF(#REF!=1,\"12\",IF(#REF!=2,\"24\",\"UNCHECKED\"))","v":{"$error":"#REF!"}},{"$f":"#REF!","v":{"$error":"#REF!"}},null,{"$f":"#REF!","v":{"$error":"#REF!"}},{"$f":"#REF!","v":{"$error":"#REF!"}},{"$f":"#REF!","v":{"$error":"#REF!"}},{"$f":"#REF!","v":{"$error":"#REF!"}},{"$f":"#REF!","v":{"$error":"#REF!"}},null,{"$f":"#REF!","v":{"$error":"#REF!"}},{"$f":"#REF!","v":{"$error":"#REF!"}},{"$f":"#REF!","v":{"$error":"#REF!"}},{"$f":"#REF!","v":{"$error":"#REF!"}},{"$f":"#REF!","v":{"$error":"#REF!"}},{"$f":"#REF!","v":{"$error":"#REF!"}},{"$f":"#REF!","v":{"$error":"#REF!"}},{"$f":"IF(#REF!=\"\",\"N\",\"Y\")","v":{"$error":"#REF!"}}]
[null,null,null,null,{"$f":"#REF!","v":{"$error":"#REF!"}},{"$f":"#REF!","v":{"$error":"#REF!"}},{"$f":"#REF!","v":{"$error":"#REF!"}},{"$f":"#REF!","v":{"$error":"#REF!"}},{"$f":"#REF!","v":{"$error":"#REF!"}},{"$f":"#REF!","v":{"$error":"#REF!"}},{"$f":"#REF!","v":{"$error":"#REF!"}},{"$f":"#REF!","v":{"$error":"#REF!"}},{"$f":"#REF!","v":{"$error":"#REF!"}},{"$f":"#REF!","v":{"$error":"#REF!"}},"Yes",{"$f":"#REF!","v":{"$error":"#REF!"}},{"$f":"#REF!","v":{"$error":"#REF!"}},{"$f":"IF(#REF!=1,\"Please Select\",IF(#REF!=3,\"Capacity Holder of LNG Importation with Storage\",IF(#REF!=2,\"Operator of LNG Importation with Storage\",0)))","v":{"$error":"#REF!"}},{"$f":"#REF!","v":{"$error":"#REF!"}},{"$f":"#REF!","v":{"$error":"#REF!"}},{"$f":"#REF!","v":{"$error":"#REF!"}},{"$f":"#REF!","v":{"$error":"#REF!"}},{"$f":"#REF!","v":{"$error":"#REF!"}},{"$f":"#REF!","v":{"$error":"#REF!"}},{"$f":"#REF!","v":{"$error":"#REF!"}},{"$f":"#REF!","v":{"$error":"#REF!"}},{"$f":"IF(#REF!=1,\"12\",IF(#REF!=2,\"24\",\"UNCHECKED\"))","v":{"$error":"#REF!"}},{"$f":"#REF!","v":{"$error":"#REF!"}},null,{"$f":"#REF!","v":{"$error":"#REF!"}},{"$f":"#REF!","v":{"$error":"#REF!"}},{"$f":"#REF!","v":{"$error":"#REF!"}},{"$f":"#REF!","v":{"$error":"#REF!"}},{"$f":"#REF!","v":{"$error":"#REF!"}},null,{"$f":"#REF!","v":{"$error":"#REF!"}},{"$f":"#REF!","v":{"$error":"#REF!"}},{"$f":"#REF!","v":{"$error":"#REF!"}},{"$f":"#REF!","v":{"$error":"#REF!"}},{"$f":"#REF!","v":{"$error":"#REF!"}},{"$f":"#REF!","v":{"$error":"#REF!"}},{"$f":"#REF!","v":{"$error":"#REF!"}},{"$f":"IF(#REF!=\"\",\"N\",\"Y\")","v":{"$error":"#REF!"}}]
[null,null,null,null,{"$f":"#REF!","v":{"$error":"#REF!"}},{"$f":"#REF!","v":{"$error":"#REF!"}},{"$f":"#REF!","v":{"$error":"#REF!"}},{"$f":"#REF!","v":{"$error":"#REF!"}},{"$f":"#REF!","v":{"$error":"#REF!"}},{"$f":"#REF!","v":{"$error":"#REF!"}},{"$f":"#REF!","v":{"$error":"#REF!"}},{"$f":"#REF!","v":{"$error":"#REF!"}},{"$f":"#REF!","v":{"$error":"#REF!"}},{"$f":"#REF!","v":{"$error":"#REF!"}},"Yes",{"$f":"#REF!","v":{"$error":"#REF!"}},{"$f":"#REF!","v":{"$error":"#REF!"}},{"$f":"IF(#REF!=1,\"Please Select\",IF(#REF!=3,\"Capacity Holder of LNG Importation with Storage\",IF(#REF!=2,\"Operator of LNG Importation with Storage\",0)))","v":{"$error":"#REF!"}},{"$f":"#REF!","v":{"$error":"#REF!"}},{"$f":"#REF!","v":{"$error":"#REF!"}},{"$f":"#REF!","v":{"$error":"#REF!"}},{"$f":"#REF!","v":{"$error":"#REF!"}},{"$f":"#REF!","v":{"$error":"#REF!"}},{"$f":"#REF!","v":{"$error":"#REF!"}},{"$f":"#REF!","v":{"$error":"#REF!"}},{"$f":"#REF!","v":{"$error":"#REF!"}},{"$f":"IF(#REF!=1,\"12\",IF(#REF!=2,\"24\",\"UNCHECKED\"))","v":{"$error":"#REF!"}},{"$f":"#REF!","v":{"$error":"#REF!"}},null,{"$f":"#REF!","v":{"$error":"#REF!"}},{"$f":"#REF!","v":{"$error":"#REF!"}},{"$f":"#REF!","v":{"$error":"#REF!"}},{"$f":"#REF!","v":{"$error":"#REF!"}},{"$f":"#REF!","v":{"$error":"#REF!"}},null,{"$f":"#REF!","v":{"$error":"#REF!"}},{"$f":"#REF!","v":{"$error":"#REF!"}},{"$f":"#REF!","v":{"$error":"#REF!"}},{"$f":"#REF!","v":{"$error":"#REF!"}},{"$f":"#REF!","v":{"$error":"#REF!"}},{"$f":"#REF!","v":{"$error":"#REF!"}},{"$f":"#REF!","v":{"$error":"#REF!"}},{"$f":"IF(#REF!=\"\",\"N\",\"Y\")","v":{"$error":"#REF!"}}]
[null,null,null,null,{"$f":"#REF!","v":{"$error":"#REF!"}},{"$f":"#REF!","v":{"$error":"#REF!"}},{"$f":"#REF!","v":{"$error":"#REF!"}},{"$f":"#REF!","v":{"$error":"#REF!"}},{"$f":"#REF!","v":{"$error":"#REF!"}},{"$f":"#REF!","v":{"$error":"#REF!"}},{"$f":"#REF!","v":{"$error":"#REF!"}},{"$f":"#REF!","v":{"$error":"#REF!"}},{"$f":"#REF!","v":{"$error":"#REF!"}},{"$f":"#REF!","v":{"$error":"#REF!"}},"Yes",{"$f":"#REF!","v":{"$error":"#REF!"}},{"$f":"#REF!","v":{"$error":"#REF!"}},{"$f":"IF(#REF!=1,\"Please Select\",IF(#REF!=3,\"Capacity Holder of LNG Importation with Storage\",IF(#REF!=2,\"Operator of LNG Importation with Storage\",0)))","v":{"$error":"#REF!"}},{"$f":"#REF!","v":{"$error":"#REF!"}},{"$f":"#REF!","v":{"$error":"#REF!"}},{"$f":"#REF!","v":{"$error":"#REF!"}},{"$f":"#REF!","v":{"$error":"#REF!"}},{"$f":"#REF!","v":{"$error":"#REF!"}},{"$f":"#REF!","v":{"$error":"#REF!"}},{"$f":"#REF!","v":{"$error":"#REF!"}},{"$f":"#REF!","v":{"$error":"#REF!"}},{"$f":"IF(#REF!=1,\"12\",IF(#REF!=2,\"24\",\"UNCHECKED\"))","v":{"$error":"#REF!"}},{"$f":"#REF!","v":{"$error":"#REF!"}},null,{"$f":"#REF!","v":{"$error":"#REF!"}},{"$f":"#REF!","v":{"$error":"#REF!"}},{"$f":"#REF!","v":{"$error":"#REF!"}},{"$f":"#REF!","v":{"$error":"#REF!"}},{"$f":"#REF!","v":{"$error":"#REF!"}},null,{"$f":"#REF!","v":{"$error":"#REF!"}},{"$f":"#REF!","v":{"$error":"#REF!"}},{"$f":"#REF!","v":{"$error":"#REF!"}},{"$f":"#REF!","v":{"$error":"#REF!"}},{"$f":"#REF!","v":{"$error":"#REF!"}},{"$f":"#REF!","v":{"$error":"#REF!"}},{"$f":"#REF!","v":{"$error":"#REF!"}},{"$f":"IF(#REF!=\"\",\"N\",\"Y\")","v":{"$error":"#REF!"}}]
[null,null,null,null,{"$f":"#REF!","v":{"$error":"#REF!"}},{"$f":"#REF!","v":{"$error":"#REF!"}},{"$f":"#REF!","v":{"$error":"#REF!"}},{"$f":"#REF!","v":{"$error":"#REF!"}},{"$f":"#REF!","v":{"$error":"#REF!"}},{"$f":"#REF!","v":{"$error":"#REF!"}},{"$f":"#REF!","v":{"$error":"#REF!"}},{"$f":"#REF!","v":{"$error":"#REF!"}},{"$f":"#REF!","v":{"$error":"#REF!"}},{"$f":"#REF!","v":{"$error":"#REF!"}},"Yes",{"$f":"#REF!","v":{"$error":"#REF!"}},{"$f":"#REF!","v":{"$error":"#REF!"}},{"$f":"IF(#REF!=1,\"Please Select\",IF(#REF!=3,\"Capacity Holder of LNG Importation with Storage\",IF(#REF!=2,\"Operator of LNG Importation with Storage\",0)))","v":{"$error":"#REF!"}},{"$f":"#REF!","v":{"$error":"#REF!"}},{"$f":"#REF!","v":{"$error":"#REF!"}},{"$f":"#REF!","v":{"$error":"#REF!"}},{"$f":"#REF!","v":{"$error":"#REF!"}},{"$f":"#REF!","v":{"$error":"#REF!"}},{"$f":"#REF!","v":{"$error":"#REF!"}},{"$f":"#REF!","v":{"$error":"#REF!"}},{"$f":"#REF!","v":{"$error":"#REF!"}},{"$f":"IF(#REF!=1,\"12\",IF(#REF!=2,\"24\",\"UNCHECKED\"))","v":{"$error":"#REF!"}},{"$f":"#REF!","v":{"$error":"#REF!"}},null,{"$f":"#REF!","v":{"$error":"#REF!"}},{"$f":"#REF!","v":{"$error":"#REF!"}},{"$f":"#REF!","v":{"$error":"#REF!"}},{"$f":"#REF!","v":{"$error":"#REF!"}},{"$f":"#REF!","v":{"$error":"#REF!"}},null,{"$f":"#REF!","v":{"$error":"#REF!"}},{"$f":"#REF!","v":{"$error":"#REF!"}},{"$f":"#REF!","v":{"$error":"#REF!"}},{"$f":"#REF!","v":{"$error":"#REF!"}},{"$f":"#REF!","v":{"$error":"#REF!"}},{"$f":"#REF!","v":{"$error":"#REF!"}},{"$f":"#REF!","v":{"$error":"#REF!"}},{"$f":"IF(#REF!=\"\",\"N\",\"Y\")","v":{"$error":"#REF!"}}]
[null,null,null,null,{"$f":"#REF!","v":{"$error":"#REF!"}},{"$f":"#REF!","v":{"$error":"#REF!"}},{"$f":"#REF!","v":{"$error":"#REF!"}},{"$f":"#REF!","v":{"$error":"#REF!"}},{"$f":"#REF!","v":{"$error":"#REF!"}},{"$f":"#REF!","v":{"$error":"#REF!"}},{"$f":"#REF!","v":{"$error":"#REF!"}},{"$f":"#REF!","v":{"$error":"#REF!"}},{"$f":"#REF!","v":{"$error":"#REF!"}},{"$f":"#REF!","v":{"$error":"#REF!"}},"Yes",{"$f":"#REF!","v":{"$error":"#REF!"}},{"$f":"#REF!","v":{"$error":"#REF!"}},{"$f":"IF(#REF!=1,\"Please Select\",IF(#REF!=3,\"Capacity Holder of LNG Importation with Storage\",IF(#REF!=2,\"Operator of LNG Importation with Storage\",0)))","v":{"$error":"#REF!"}},{"$f":"#REF!","v":{"$error":"#REF!"}},{"$f":"#REF!","v":{"$error":"#REF!"}},{"$f":"#REF!","v":{"$error":"#REF!"}},{"$f":"#REF!","v":{"$error":"#REF!"}},{"$f":"#REF!","v":{"$error":"#REF!"}},{"$f":"#REF!","v":{"$error":"#REF!"}},{"$f":"#REF!","v":{"$error":"#REF!"}},{"$f":"#REF!","v":{"$error":"#REF!"}},{"$f":"IF(#REF!=1,\"12\",IF(#REF!=2,\"24\",\"UNCHECKED\"))","v":{"$error":"#REF!"}},{"$f":"#REF!","v":{"$error":"#REF!"}},null,{"$f":"#REF!","v":{"$error":"#REF!"}},{"$f":"#REF!","v":{"$error":"#REF!"}},{"$f":"#REF!","v":{"$error":"#REF!"}},{"$f":"#REF!","v":{"$error":"#REF!"}},{"$f":"#REF!","v":{"$error":"#REF!"}},null,{"$f":"#REF!","v":{"$error":"#REF!"}},{"$f":"#REF!","v":{"$error":"#REF!"}},{"$f":"#REF!","v":{"$error":"#REF!"}},{"$f":"#REF!","v":{"$error":"#REF!"}},{"$f":"#REF!","v":{"$error":"#REF!"}},{"$f":"#REF!","v":{"$error":"#REF!"}},{"$f":"#REF!","v":{"$error":"#REF!"}},{"$f":"IF(#REF!=\"\",\"N\",\"Y\")","v":{"$error":"#REF!"}}]
[null,null,null,null,{"$f":"#REF!","v":{"$error":"#REF!"}},{"$f":"#REF!","v":{"$error":"#REF!"}},{"$f":"#REF!","v":{"$error":"#REF!"}},{"$f":"#REF!","v":{"$error":"#REF!"}},{"$f":"#REF!","v":{"$error":"#REF!"}},{"$f":"#REF!","v":{"$error":"#REF!"}},{"$f":"#REF!","v":{"$error":"#REF!"}},{"$f":"#REF!","v":{"$error":"#REF!"}},{"$f":"#REF!","v":{"$error":"#REF!"}},{"$f":"#REF!","v":{"$error":"#REF!"}},"Yes",{"$f":"#REF!","v":{"$error":"#REF!"}},{"$f":"#REF!","v":{"$error":"#REF!"}},{"$f":"IF(#REF!=1,\"Please Select\",IF(#REF!=3,\"Capacity Holder of LNG Importation with Storage\",IF(#REF!=2,\"Operator of LNG Importation with Storage\",0)))","v":{"$error":"#REF!"}},{"$f":"#REF!","v":{"$error":"#REF!"}},{"$f":"#REF!","v":{"$error":"#REF!"}},{"$f":"#REF!","v":{"$error":"#REF!"}},{"$f":"#REF!","v":{"$error":"#REF!"}},{"$f":"#REF!","v":{"$error":"#REF!"}},{"$f":"#REF!","v":{"$error":"#REF!"}},{"$f":"#REF!","v":{"$error":"#REF!"}},{"$f":"#REF!","v":{"$error":"#REF!"}},{"$f":"IF(#REF!=1,\"12\",IF(#REF!=2,\"24\",\"UNCHECKED\"))","v":{"$error":"#REF!"}},{"$f":"#REF!","v":{"$error":"#REF!"}},null,{"$f":"#REF!","v":{"$error":"#REF!"}},{"$f":"#REF!","v":{"$error":"#REF!"}},{"$f":"#REF!","v":{"$error":"#REF!"}},{"$f":"#REF!","v":{"$error":"#REF!"}},{"$f":"#REF!","v":{"$error":"#REF!"}},null,{"$f":"#REF!","v":{"$error":"#REF!"}},{"$f":"#REF!","v":{"$error":"#REF!"}},{"$f":"#REF!","v":{"$error":"#REF!"}},{"$f":"#REF!","v":{"$error":"#REF!"}},{"$f":"#REF!","v":{"$error":"#REF!"}},{"$f":"#REF!","v":{"$error":"#REF!"}},{"$f":"#REF!","v":{"$error":"#REF!"}},{"$f":"IF(#REF!=\"\",\"N\",\"Y\")","v":{"$error":"#REF!"}}]
[null,null,null,null,{"$f":"#REF!","v":{"$error":"#REF!"}},{"$f":"#REF!","v":{"$error":"#REF!"}},{"$f":"#REF!","v":{"$error":"#REF!"}},{"$f":"#REF!","v":{"$error":"#REF!"}},{"$f":"#REF!","v":{"$error":"#REF!"}},{"$f":"#REF!","v":{"$error":"#REF!"}},{"$f":"#REF!","v":{"$error":"#REF!"}},{"$f":"#REF!","v":{"$error":"#REF!"}},{"$f":"#REF!","v":{"$error":"#REF!"}},{"$f":"#REF!","v":{"$error":"#REF!"}},"Yes",{"$f":"#REF!","v":{"$error":"#REF!"}},{"$f":"#REF!","v":{"$error":"#REF!"}},{"$f":"IF(#REF!=1,\"Please Select\",IF(#REF!=3,\"Capacity Holder of LNG Importation with Storage\",IF(#REF!=2,\"Operator of LNG Importation with Storage\",0)))","v":{"$error":"#REF!"}},{"$f":"#REF!","v":{"$error":"#REF!"}},{"$f":"#REF!","v":{"$error":"#REF!"}},{"$f":"#REF!","v":{"$error":"#REF!"}},{"$f":"#REF!","v":{"$error":"#REF!"}},{"$f":"#REF!","v":{"$error":"#REF!"}},{"$f":"#REF!","v":{"$error":"#REF!"}},{"$f":"#REF!","v":{"$error":"#REF!"}},{"$f":"#REF!","v":{"$error":"#REF!"}},{"$f":"IF(#REF!=1,\"12\",IF(#REF!=2,\"24\",\"UNCHECKED\"))","v":{"$error":"#REF!"}},{"$f":"#REF!","v":{"$error":"#REF!"}},null,{"$f":"#REF!","v":{"$error":"#REF!"}},{"$f":"#REF!","v":{"$error":"#REF!"}},{"$f":"#REF!","v":{"$error":"#REF!"}},{"$f":"#REF!","v":{"$error":"#REF!"}},{"$f":"#REF!","v":{"$error":"#REF!"}},null,{"$f":"#REF!","v":{"$error":"#REF!"}},{"$f":"#REF!","v":{"$error":"#REF!"}},{"$f":"#REF!","v":{"$error":"#REF!"}},{"$f":"#REF!","v":{"$error":"#REF!"}},{"$f":"#REF!","v":{"$error":"#REF!"}},{"$f":"#REF!","v":{"$error":"#REF!"}},{"$f":"#REF!","v":{"$error":"#REF!"}},{"$f":"IF(#REF!=\"\",\"N\",\"Y\")","v":{"$error":"#REF!"}}]